{"text_format":"1","workbook":"xlsx","n_sheets":19,"sheets":["Pointskala","test","LK0","LK1","LK2","LK3","LK4","SSK0","SSK1","SSK2","SSK3","SSK4","SSK5","SSK6","SSK7","FK0","FK1","FK2","FK3"],"not_rendered":{"charts":0,"images":1,"macros":1,"external_links":0,"defined_names":0,"comments":0,"pivot_tables":0},"unopened":[],"bounds":{"document_bytes":16777216,"sheet_cells":100000,"rows_first":2000,"rows_last":500,"rows_between":2000,"halvings":0,"cell_chars":16384,"cell_head_chars":4096},"cells_cut":0,"cells_raw":0,"read":"whole","date_system":"1900"}

{"sheet":"Pointskala","index":0,"n_rows":18,"n_cols":6,"rows_kept":18,"cut":false,"hidden":false,"merged":[[0,0,0,17],[2,5,7,10]]}
["Point Skala"]
[]
["1.","Plads",15,"Point ",null,"Hvis mere end de 2 ordinær kvalificerede har point lighed medtages de med point lighed til landsdelsmesterskab                        Husk at sortere efter point inden man kigger på placeringen"]
["2.","Plads",12,"Point "]
["3.","Plads",10,"Point "]
["4.","Plads",8,"Point "]
["5.","Plads",7,"Point "]
["6.","Plads",6,"Point "]
["7.","Plads",5,"Point "]
["8.","Plads",4,"Point "]
["9.","Plads",3,"Point "]
["10.","Plads",2,"Point ",null,"Nød telefon  Lars Klausholt 61768523"]
["11.","Plads",1,"Point "]
["12.","Plads",1,"Point "]
["13.","Plads",1,"Point "]
["14.","Plads",1,"Point "]
["15.","Plads",1,"Point "]
["16.","Plads",1,"Point "]

{"sheet":"test","index":1,"n_rows":118,"n_cols":16,"rows_kept":118,"cut":false,"hidden":false,"merged":[[0,0,0,17],[1,0,1,17],[2,11,3,11],[2,12,3,12],[2,13,3,14]]}
["     Point skema Test"]
[]
[null,null,null,null,null,"Stævner",null,null,null,null,null,"Højeste point ","2. højeste point","2 højeste point sammenlagt",null,"Placering"]
["Navn","Traktor ","Medlemsnr",null,"Skive","Tjele","Thisted","Mors","Viborg "]
["Ejnar Sjælland","Fiat 1000",1,null,7,10,15,12,12,0,0,{"$f":"LARGE(E5:K5,1)","v":15},{"$f":"LARGE(E5:K5,2)","v":12},null,{"$f":"L5+M5","v":27},1]
["Nicolai Troelsen","Æ Spædekalv",5,null,15,15,12,15,15,0,0,15,15,null,30,2]
["Jacob Pedersen","Ursus 1222",6,null,8,null,7,null,null,0,0,8,7,null,15,3]
["Dennis Myrhøj","Little Bandit",4,null,12,8,8,8,7,0,0,12,8,null,20,4]
["Henri Pit","Deutz 8006",3,null,12,7,6,7,8,0,0,12,8,null,20,5]
[null,null,null,null,null,null,null,null,null,0,0,0,0,null,0,6]
[null,null,null,null,null,null,null,null,null,0,0,0,0,null,0,7]
[null,null,null,null,null,null,null,null,null,0,0,0,0,null,0,8]
[null,null,null,null,null,null,null,null,null,0,0,0,0,null,0,9]
[null,null,null,null,null,null,null,null,null,0,0,0,0,null,0,10]
[null,null,null,null,null,null,null,null,null,0,0,0,0,null,0,11]
[null,null,null,null,null,null,null,null,null,0,0,0,0,null,0]
[null,null,null,null,null,null,null,null,null,0,0,0,0,null,0]
[null,null,null,null,null,null,null,null,null,0,0,0,0,null,0]
[null,null,null,null,null,null,null,null,null,0,0,0,0,null,0]
[null,null,null,null,null,null,null,null,null,0,0,0,0,null,0]
[null,null,null,null,null,null,null,null,null,0,0,0,0,null,0]
[null,null,null,null,null,null,null,null,null,0,0,0,0,null,0]
[null,null,null,null,null,null,null,null,null,0,0,0,0,null,0]
[null,null,null,null,null,null,null,null,null,0,0,0,0,null,0]
[null,null,null,null,null,null,null,null,null,0,0,0,0,null,0]
[null,null,null,null,null,null,null,null,null,0,0,0,0,null,0]
[null,null,null,null,null,null,null,null,null,0,0,0,0,null,0]
[null,null,null,null,null,null,null,null,null,0,0,0,0,null,0]
[null,null,null,null,null,null,null,null,null,0,0,0,0,null,0]
[null,null,null,null,null,null,null,null,null,0,0,0,0,null,0]
[null,null,null,null,null,null,null,null,null,0,0,0,0,null,0]
[null,null,null,null,null,null,null,null,null,0,0,0,0,null,0]
[null,null,null,null,null,null,null,null,null,0,0,0,0,null,0]
[null,null,null,null,null,null,null,null,null,0,0,0,0,null,0]
[null,null,null,null,null,null,null,null,null,0,0,0,0,null,0]
[null,null,null,null,null,null,null,null,null,0,0,0,0,null,0]
[null,null,null,null,null,null,null,null,null,0,0,{"$f":"LARGE(E37:K37,1)","v":0},{"$f":"LARGE(E37:K37,2)","v":0},null,{"$f":"L37+M37","v":0}]
[null,null,null,null,null,null,null,null,null,0,0,0,0,null,0]
[null,null,null,null,null,null,null,null,null,0,0,0,0,null,0]
[null,null,null,null,null,null,null,null,null,0,0,0,0,null,0]
[null,null,null,null,null,null,null,null,null,0,0,0,0,null,0]
[null,null,null,null,null,null,null,null,null,0,0,0,0,null,0]
[null,null,null,null,null,null,null,null,null,0,0,0,0,null,0]
[null,null,null,null,null,null,null,null,null,0,0,0,0,null,0]
[null,null,null,null,null,null,null,null,null,0,0,0,0,null,0]
[null,null,null,null,null,null,null,null,null,0,0,0,0,null,0]
[null,null,null,null,null,null,null,null,null,0,0,0,0,null,0]
[null,null,null,null,null,null,null,null,null,0,0,0,0,null,0]
[null,null,null,null,null,null,null,null,null,0,0,0,0,null,0]
[null,null,null,null,null,null,null,null,null,0,0,0,0,null,0]
[null,null,null,null,null,null,null,null,null,0,0,0,0,null,0]
[null,null,null,null,null,null,null,null,null,0,0,0,0,null,0]
[null,null,null,null,null,null,null,null,null,0,0,0,0,null,0]
[null,null,null,null,null,null,null,null,null,0,0,0,0,null,0]
[null,null,null,null,null,null,null,null,null,0,0,0,0,null,0]
[null,null,null,null,null,null,null,null,null,0,0,0,0,null,0]
[null,null,null,null,null,null,null,null,null,0,0,0,0,null,0]
[null,null,null,null,null,null,null,null,null,0,0,0,0,null,0]
[null,null,null,null,null,null,null,null,null,0,0,0,0,null,0]
[null,null,null,null,null,null,null,null,null,0,0,0,0,null,0]
[null,null,null,null,null,null,null,null,null,0,0,0,0,null,0]
[null,null,null,null,null,null,null,null,null,0,0,0,0,null,0]
[null,null,null,null,null,null,null,null,null,0,0,0,0,null,0]
[null,null,null,null,null,null,null,null,null,0,0,0,0,null,0]
[null,null,null,null,null,null,null,null,null,0,0,0,0,null,0]
[null,null,null,null,null,null,null,null,null,0,0,0,0,null,0]
[null,null,null,null,null,null,null,null,null,0,0,0,0,null,0]
[null,null,null,null,null,null,null,null,null,0,0,0,0,null,0]
[null,null,null,null,null,null,null,null,null,0,0,{"$f":"LARGE(E69:K69,1)","v":0},{"$f":"LARGE(E69:K69,2)","v":0},null,{"$f":"L69+M69","v":0}]
[null,null,null,null,null,null,null,null,null,0,0,0,0,null,0]
[null,null,null,null,null,null,null,null,null,0,0,0,0,null,0]
[null,null,null,null,null,null,null,null,null,0,0,0,0,null,0]
[null,null,null,null,null,null,null,null,null,0,0,0,0,null,0]
[null,null,null,null,null,null,null,null,null,0,0,0,0,null,0]
[null,null,null,null,null,null,null,null,null,0,0,0,0,null,0]
[null,null,null,null,null,null,null,null,null,0,0,0,0,null,0]
[null,null,null,null,null,null,null,null,null,0,0,0,0,null,0]
[null,null,null,null,null,null,null,null,null,0,0,0,0,null,0]
[null,null,null,null,null,null,null,null,null,0,0,0,0,null,0]
[null,null,null,null,null,null,null,null,null,0,0,0,0,null,0]
[null,null,null,null,null,null,null,null,null,0,0,0,0,null,0]
[null,null,null,null,null,null,null,null,null,0,0,0,0,null,0]
[null,null,null,null,null,null,null,null,null,0,0,0,0,null,0]
[null,null,null,null,null,null,null,null,null,0,0,0,0,null,0]
[null,null,null,null,null,null,null,null,null,0,0,0,0,null,0]
[null,null,null,null,null,null,null,null,null,0,0,0,0,null,0]
[null,null,null,null,null,null,null,null,null,0,0,0,0,null,0]
[null,null,null,null,null,null,null,null,null,0,0,0,0,null,0]
[null,null,null,null,null,null,null,null,null,0,0,0,0,null,0]
[null,null,null,null,null,null,null,null,null,0,0,0,0,null,0]
[null,null,null,null,null,null,null,null,null,0,0,0,0,null,0]
[null,null,null,null,null,null,null,null,null,0,0,0,0,null,0]
[null,null,null,null,null,null,null,null,null,0,0,0,0,null,0]
[null,null,null,null,null,null,null,null,null,0,0,0,0,null,0]
[null,null,null,null,null,null,null,null,null,0,0,0,0,null,0]
[null,null,null,null,null,null,null,null,null,0,0,0,0,null,0]
[null,null,null,null,null,null,null,null,null,0,0,0,0,null,0]
[null,null,null,null,null,null,null,null,null,0,0,0,0,null,0]
[null,null,null,null,null,null,null,null,null,0,0,0,0,null,0]
[null,null,null,null,null,null,null,null,null,0,0,0,0,null,0]
[null,null,null,null,null,null,null,null,null,0,0,{"$f":"LARGE(E101:K101,1)","v":0},{"$f":"LARGE(E101:K101,2)","v":0},null,{"$f":"L101+M101","v":0}]
[null,null,null,null,null,null,null,null,null,0,0,0,0,null,0]
[null,null,null,null,null,null,null,null,null,0,0,0,0,null,0]
[null,null,null,null,null,null,null,null,null,0,0,0,0,null,0]
[null,null,null,null,null,null,null,null,null,0,0,0,0,null,0]
[null,null,null,null,null,null,null,null,null,0,0,0,0,null,0]
[null,null,null,null,null,null,null,null,null,0,0,0,0,null,0]
[null,null,null,null,null,null,null,null,null,0,0,0,0,null,0]
[null,null,null,null,null,null,null,null,null,0,0,0,0,null,0]
[null,null,null,null,null,null,null,null,null,0,0,0,0,null,0]
[null,null,null,null,null,null,null,null,null,0,0,0,0,null,0]
[null,null,null,null,null,null,null,null,null,0,0,0,0,null,0]
[null,null,null,null,null,null,null,null,null,0,0,0,0,null,0]
[null,null,null,null,null,null,null,null,null,0,0,0,0,null,0]
[null,null,null,null,null,null,null,null,null,0,0,0,0,null,0]
[null,null,null,null,null,null,null,null,null,0,0,0,0,null,0]
[null,null,null,null,null,null,null,null,null,0,0,0,0,null,0]
[null,null,null,null,null,null,null,null,null,0,0,0,0,null,0]

{"sheet":"LK0","index":2,"n_rows":118,"n_cols":16,"rows_kept":118,"cut":false,"hidden":false,"merged":[[0,0,0,17],[1,0,1,17],[2,11,3,11],[2,12,3,12],[2,13,3,14]]}
["     Point skema Landbrugs Klasse 0"]
[]
[null,null,null,null,null,"Stævner",null,null,null,null,null,"Højeste point ","2. højeste point","2 højeste point sammenlagt",null,"Placering"]
["Navn","Traktor ","Medlemsnr",null,"Skive","Tjele","Thisted","Mors","Viborg "]
[null,null,null,null,null,null,null,null,null,0,0,{"$f":"LARGE(E5:K5,1)","v":0},{"$f":"LARGE(E5:K5,2)","v":0},null,{"$f":"L5+M5","v":0},1]
[null,null,null,null,null,null,null,null,null,0,0,0,0,null,0,2]
[null,null,null,null,null,null,null,null,null,0,0,0,0,null,0,3]
[null,null,null,null,null,null,null,null,null,0,0,0,0,null,0,4]
[null,null,null,null,null,null,null,null,null,0,0,0,0,null,0,5]
[null,null,null,null,null,null,null,null,null,0,0,0,0,null,0,6]
[null,null,null,null,null,null,null,null,null,0,0,0,0,null,0,7]
[null,null,null,null,null,null,null,null,null,0,0,0,0,null,0,8]
[null,null,null,null,null,null,null,null,null,0,0,0,0,null,0,9]
[null,null,null,null,null,null,null,null,null,0,0,0,0,null,0,10]
[null,null,null,null,null,null,null,null,null,0,0,0,0,null,0,11]
[null,null,null,null,null,null,null,null,null,0,0,0,0,null,0]
[null,null,null,null,null,null,null,null,null,0,0,0,0,null,0]
[null,null,null,null,null,null,null,null,null,0,0,0,0,null,0]
[null,null,null,null,null,null,null,null,null,0,0,0,0,null,0]
[null,null,null,null,null,null,null,null,null,0,0,0,0,null,0]
[null,null,null,null,null,null,null,null,null,0,0,0,0,null,0]
[null,null,null,null,null,null,null,null,null,0,0,0,0,null,0]
[null,null,null,null,null,null,null,null,null,0,0,0,0,null,0]
[null,null,null,null,null,null,null,null,null,0,0,0,0,null,0]
[null,null,null,null,null,null,null,null,null,0,0,0,0,null,0]
[null,null,null,null,null,null,null,null,null,0,0,0,0,null,0]
[null,null,null,null,null,null,null,null,null,0,0,0,0,null,0]
[null,null,null,null,null,null,null,null,null,0,0,0,0,null,0]
[null,null,null,null,null,null,null,null,null,0,0,0,0,null,0]
[null,null,null,null,null,null,null,null,null,0,0,0,0,null,0]
[null,null,null,null,null,null,null,null,null,0,0,0,0,null,0]
[null,null,null,null,null,null,null,null,null,0,0,0,0,null,0]
[null,null,null,null,null,null,null,null,null,0,0,0,0,null,0]
[null,null,null,null,null,null,null,null,null,0,0,0,0,null,0]
[null,null,null,null,null,null,null,null,null,0,0,0,0,null,0]
[null,null,null,null,null,null,null,null,null,0,0,0,0,null,0]
[null,null,null,null,null,null,null,null,null,0,0,{"$f":"LARGE(E37:K37,1)","v":0},{"$f":"LARGE(E37:K37,2)","v":0},null,{"$f":"L37+M37","v":0}]
[null,null,null,null,null,null,null,null,null,0,0,0,0,null,0]
[null,null,null,null,null,null,null,null,null,0,0,0,0,null,0]
[null,null,null,null,null,null,null,null,null,0,0,0,0,null,0]
[null,null,null,null,null,null,null,null,null,0,0,0,0,null,0]
[null,null,null,null,null,null,null,null,null,0,0,0,0,null,0]
[null,null,null,null,null,null,null,null,null,0,0,0,0,null,0]
[null,null,null,null,null,null,null,null,null,0,0,0,0,null,0]
[null,null,null,null,null,null,null,null,null,0,0,0,0,null,0]
[null,null,null,null,null,null,null,null,null,0,0,0,0,null,0]
[null,null,null,null,null,null,null,null,null,0,0,0,0,null,0]
[null,null,null,null,null,null,null,null,null,0,0,0,0,null,0]
[null,null,null,null,null,null,null,null,null,0,0,0,0,null,0]
[null,null,null,null,null,null,null,null,null,0,0,0,0,null,0]
[null,null,null,null,null,null,null,null,null,0,0,0,0,null,0]
[null,null,null,null,null,null,null,null,null,0,0,0,0,null,0]
[null,null,null,null,null,null,null,null,null,0,0,0,0,null,0]
[null,null,null,null,null,null,null,null,null,0,0,0,0,null,0]
[null,null,null,null,null,null,null,null,null,0,0,0,0,null,0]
[null,null,null,null,null,null,null,null,null,0,0,0,0,null,0]
[null,null,null,null,null,null,null,null,null,0,0,0,0,null,0]
[null,null,null,null,null,null,null,null,null,0,0,0,0,null,0]
[null,null,null,null,null,null,null,null,null,0,0,0,0,null,0]
[null,null,null,null,null,null,null,null,null,0,0,0,0,null,0]
[null,null,null,null,null,null,null,null,null,0,0,0,0,null,0]
[null,null,null,null,null,null,null,null,null,0,0,0,0,null,0]
[null,null,null,null,null,null,null,null,null,0,0,0,0,null,0]
[null,null,null,null,null,null,null,null,null,0,0,0,0,null,0]
[null,null,null,null,null,null,null,null,null,0,0,0,0,null,0]
[null,null,null,null,null,null,null,null,null,0,0,0,0,null,0]
[null,null,null,null,null,null,null,null,null,0,0,0,0,null,0]
[null,null,null,null,null,null,null,null,null,0,0,0,0,null,0]
[null,null,null,null,null,null,null,null,null,0,0,{"$f":"LARGE(E69:K69,1)","v":0},{"$f":"LARGE(E69:K69,2)","v":0},null,{"$f":"L69+M69","v":0}]
[null,null,null,null,null,null,null,null,null,0,0,0,0,null,0]
[null,null,null,null,null,null,null,null,null,0,0,0,0,null,0]
[null,null,null,null,null,null,null,null,null,0,0,0,0,null,0]
[null,null,null,null,null,null,null,null,null,0,0,0,0,null,0]
[null,null,null,null,null,null,null,null,null,0,0,0,0,null,0]
[null,null,null,null,null,null,null,null,null,0,0,0,0,null,0]
[null,null,null,null,null,null,null,null,null,0,0,0,0,null,0]
[null,null,null,null,null,null,null,null,null,0,0,0,0,null,0]
[null,null,null,null,null,null,null,null,null,0,0,0,0,null,0]
[null,null,null,null,null,null,null,null,null,0,0,0,0,null,0]
[null,null,null,null,null,null,null,null,null,0,0,0,0,null,0]
[null,null,null,null,null,null,null,null,null,0,0,0,0,null,0]
[null,null,null,null,null,null,null,null,null,0,0,0,0,null,0]
[null,null,null,null,null,null,null,null,null,0,0,0,0,null,0]
[null,null,null,null,null,null,null,null,null,0,0,0,0,null,0]
[null,null,null,null,null,null,null,null,null,0,0,0,0,null,0]
[null,null,null,null,null,null,null,null,null,0,0,0,0,null,0]
[null,null,null,null,null,null,null,null,null,0,0,0,0,null,0]
[null,null,null,null,null,null,null,null,null,0,0,0,0,null,0]
[null,null,null,null,null,null,null,null,null,0,0,0,0,null,0]
[null,null,null,null,null,null,null,null,null,0,0,0,0,null,0]
[null,null,null,null,null,null,null,null,null,0,0,0,0,null,0]
[null,null,null,null,null,null,null,null,null,0,0,0,0,null,0]
[null,null,null,null,null,null,null,null,null,0,0,0,0,null,0]
[null,null,null,null,null,null,null,null,null,0,0,0,0,null,0]
[null,null,null,null,null,null,null,null,null,0,0,0,0,null,0]
[null,null,null,null,null,null,null,null,null,0,0,0,0,null,0]
[null,null,null,null,null,null,null,null,null,0,0,0,0,null,0]
[null,null,null,null,null,null,null,null,null,0,0,0,0,null,0]
[null,null,null,null,null,null,null,null,null,0,0,0,0,null,0]
[null,null,null,null,null,null,null,null,null,0,0,0,0,null,0]
[null,null,null,null,null,null,null,null,null,0,0,{"$f":"LARGE(E101:K101,1)","v":0},{"$f":"LARGE(E101:K101,2)","v":0},null,{"$f":"L101+M101","v":0}]
[null,null,null,null,null,null,null,null,null,0,0,0,0,null,0]
[null,null,null,null,null,null,null,null,null,0,0,0,0,null,0]
[null,null,null,null,null,null,null,null,null,0,0,0,0,null,0]
[null,null,null,null,null,null,null,null,null,0,0,0,0,null,0]
[null,null,null,null,null,null,null,null,null,0,0,0,0,null,0]
[null,null,null,null,null,null,null,null,null,0,0,0,0,null,0]
[null,null,null,null,null,null,null,null,null,0,0,0,0,null,0]
[null,null,null,null,null,null,null,null,null,0,0,0,0,null,0]
[null,null,null,null,null,null,null,null,null,0,0,0,0,null,0]
[null,null,null,null,null,null,null,null,null,0,0,0,0,null,0]
[null,null,null,null,null,null,null,null,null,0,0,0,0,null,0]
[null,null,null,null,null,null,null,null,null,0,0,0,0,null,0]
[null,null,null,null,null,null,null,null,null,0,0,0,0,null,0]
[null,null,null,null,null,null,null,null,null,0,0,0,0,null,0]
[null,null,null,null,null,null,null,null,null,0,0,0,0,null,0]
[null,null,null,null,null,null,null,null,null,0,0,0,0,null,0]
[null,null,null,null,null,null,null,null,null,0,0,0,0,null,0]

{"sheet":"LK1","index":3,"n_rows":118,"n_cols":16,"rows_kept":118,"cut":false,"hidden":false,"merged":[[0,0,0,17],[1,0,1,17],[2,11,3,11],[2,12,3,12],[2,13,3,14]]}
["     Point skema Landbrugs Klasse 1"]
[]
[null,null,null,null,null,"Stævner",null,null,null,null,null,"Højeste point ","2. højeste point","2 højeste point sammenlagt",null,"Placering"]
["Navn","Traktor ","Medlemsnr",null,"Skive","Tjele","Thisted","Mors","Viborg "]
[null,null,null,null,null,null,null,null,null,0,0,{"$f":"LARGE(E5:K5,1)","v":0},{"$f":"LARGE(E5:K5,2)","v":0},null,{"$f":"L5+M5","v":0},1]
[null,null,null,null,null,null,null,null,null,0,0,0,0,null,0,2]
[null,null,null,null,null,null,null,null,null,0,0,0,0,null,0,3]
[null,null,null,null,null,null,null,null,null,0,0,0,0,null,0,4]
[null,null,null,null,null,null,null,null,null,0,0,0,0,null,0,5]
[null,null,null,null,null,null,null,null,null,0,0,0,0,null,0,6]
[null,null,null,null,null,null,null,null,null,0,0,0,0,null,0,7]
[null,null,null,null,null,null,null,null,null,0,0,0,0,null,0,8]
[null,null,null,null,null,null,null,null,null,0,0,0,0,null,0,9]
[null,null,null,null,null,null,null,null,null,0,0,0,0,null,0,10]
[null,null,null,null,null,null,null,null,null,0,0,0,0,null,0,11]
[null,null,null,null,null,null,null,null,null,0,0,0,0,null,0]
[null,null,null,null,null,null,null,null,null,0,0,0,0,null,0]
[null,null,null,null,null,null,null,null,null,0,0,0,0,null,0]
[null,null,null,null,null,null,null,null,null,0,0,0,0,null,0]
[null,null,null,null,null,null,null,null,null,0,0,0,0,null,0]
[null,null,null,null,null,null,null,null,null,0,0,0,0,null,0]
[null,null,null,null,null,null,null,null,null,0,0,0,0,null,0]
[null,null,null,null,null,null,null,null,null,0,0,0,0,null,0]
[null,null,null,null,null,null,null,null,null,0,0,0,0,null,0]
[null,null,null,null,null,null,null,null,null,0,0,0,0,null,0]
[null,null,null,null,null,null,null,null,null,0,0,0,0,null,0]
[null,null,null,null,null,null,null,null,null,0,0,0,0,null,0]
[null,null,null,null,null,null,null,null,null,0,0,0,0,null,0]
[null,null,null,null,null,null,null,null,null,0,0,0,0,null,0]
[null,null,null,null,null,null,null,null,null,0,0,0,0,null,0]
[null,null,null,null,null,null,null,null,null,0,0,0,0,null,0]
[null,null,null,null,null,null,null,null,null,0,0,0,0,null,0]
[null,null,null,null,null,null,null,null,null,0,0,0,0,null,0]
[null,null,null,null,null,null,null,null,null,0,0,0,0,null,0]
[null,null,null,null,null,null,null,null,null,0,0,0,0,null,0]
[null,null,null,null,null,null,null,null,null,0,0,0,0,null,0]
[null,null,null,null,null,null,null,null,null,0,0,{"$f":"LARGE(E37:K37,1)","v":0},{"$f":"LARGE(E37:K37,2)","v":0},null,{"$f":"L37+M37","v":0}]
[null,null,null,null,null,null,null,null,null,0,0,0,0,null,0]
[null,null,null,null,null,null,null,null,null,0,0,0,0,null,0]
[null,null,null,null,null,null,null,null,null,0,0,0,0,null,0]
[null,null,null,null,null,null,null,null,null,0,0,0,0,null,0]
[null,null,null,null,null,null,null,null,null,0,0,0,0,null,0]
[null,null,null,null,null,null,null,null,null,0,0,0,0,null,0]
[null,null,null,null,null,null,null,null,null,0,0,0,0,null,0]
[null,null,null,null,null,null,null,null,null,0,0,0,0,null,0]
[null,null,null,null,null,null,null,null,null,0,0,0,0,null,0]
[null,null,null,null,null,null,null,null,null,0,0,0,0,null,0]
[null,null,null,null,null,null,null,null,null,0,0,0,0,null,0]
[null,null,null,null,null,null,null,null,null,0,0,0,0,null,0]
[null,null,null,null,null,null,null,null,null,0,0,0,0,null,0]
[null,null,null,null,null,null,null,null,null,0,0,0,0,null,0]
[null,null,null,null,null,null,null,null,null,0,0,0,0,null,0]
[null,null,null,null,null,null,null,null,null,0,0,0,0,null,0]
[null,null,null,null,null,null,null,null,null,0,0,0,0,null,0]
[null,null,null,null,null,null,null,null,null,0,0,0,0,null,0]
[null,null,null,null,null,null,null,null,null,0,0,0,0,null,0]
[null,null,null,null,null,null,null,null,null,0,0,0,0,null,0]
[null,null,null,null,null,null,null,null,null,0,0,0,0,null,0]
[null,null,null,null,null,null,null,null,null,0,0,0,0,null,0]
[null,null,null,null,null,null,null,null,null,0,0,0,0,null,0]
[null,null,null,null,null,null,null,null,null,0,0,0,0,null,0]
[null,null,null,null,null,null,null,null,null,0,0,0,0,null,0]
[null,null,null,null,null,null,null,null,null,0,0,0,0,null,0]
[null,null,null,null,null,null,null,null,null,0,0,0,0,null,0]
[null,null,null,null,null,null,null,null,null,0,0,0,0,null,0]
[null,null,null,null,null,null,null,null,null,0,0,0,0,null,0]
[null,null,null,null,null,null,null,null,null,0,0,0,0,null,0]
[null,null,null,null,null,null,null,null,null,0,0,0,0,null,0]
[null,null,null,null,null,null,null,null,null,0,0,{"$f":"LARGE(E69:K69,1)","v":0},{"$f":"LARGE(E69:K69,2)","v":0},null,{"$f":"L69+M69","v":0}]
[null,null,null,null,null,null,null,null,null,0,0,0,0,null,0]
[null,null,null,null,null,null,null,null,null,0,0,0,0,null,0]
[null,null,null,null,null,null,null,null,null,0,0,0,0,null,0]
[null,null,null,null,null,null,null,null,null,0,0,0,0,null,0]
[null,null,null,null,null,null,null,null,null,0,0,0,0,null,0]
[null,null,null,null,null,null,null,null,null,0,0,0,0,null,0]
[null,null,null,null,null,null,null,null,null,0,0,0,0,null,0]
[null,null,null,null,null,null,null,null,null,0,0,0,0,null,0]
[null,null,null,null,null,null,null,null,null,0,0,0,0,null,0]
[null,null,null,null,null,null,null,null,null,0,0,0,0,null,0]
[null,null,null,null,null,null,null,null,null,0,0,0,0,null,0]
[null,null,null,null,null,null,null,null,null,0,0,0,0,null,0]
[null,null,null,null,null,null,null,null,null,0,0,0,0,null,0]
[null,null,null,null,null,null,null,null,null,0,0,0,0,null,0]
[null,null,null,null,null,null,null,null,null,0,0,0,0,null,0]
[null,null,null,null,null,null,null,null,null,0,0,0,0,null,0]
[null,null,null,null,null,null,null,null,null,0,0,0,0,null,0]
[null,null,null,null,null,null,null,null,null,0,0,0,0,null,0]
[null,null,null,null,null,null,null,null,null,0,0,0,0,null,0]
[null,null,null,null,null,null,null,null,null,0,0,0,0,null,0]
[null,null,null,null,null,null,null,null,null,0,0,0,0,null,0]
[null,null,null,null,null,null,null,null,null,0,0,0,0,null,0]
[null,null,null,null,null,null,null,null,null,0,0,0,0,null,0]
[null,null,null,null,null,null,null,null,null,0,0,0,0,null,0]
[null,null,null,null,null,null,null,null,null,0,0,0,0,null,0]
[null,null,null,null,null,null,null,null,null,0,0,0,0,null,0]
[null,null,null,null,null,null,null,null,null,0,0,0,0,null,0]
[null,null,null,null,null,null,null,null,null,0,0,0,0,null,0]
[null,null,null,null,null,null,null,null,null,0,0,0,0,null,0]
[null,null,null,null,null,null,null,null,null,0,0,0,0,null,0]
[null,null,null,null,null,null,null,null,null,0,0,0,0,null,0]
[null,null,null,null,null,null,null,null,null,0,0,{"$f":"LARGE(E101:K101,1)","v":0},{"$f":"LARGE(E101:K101,2)","v":0},null,{"$f":"L101+M101","v":0}]
[null,null,null,null,null,null,null,null,null,0,0,0,0,null,0]
[null,null,null,null,null,null,null,null,null,0,0,0,0,null,0]
[null,null,null,null,null,null,null,null,null,0,0,0,0,null,0]
[null,null,null,null,null,null,null,null,null,0,0,0,0,null,0]
[null,null,null,null,null,null,null,null,null,0,0,0,0,null,0]
[null,null,null,null,null,null,null,null,null,0,0,0,0,null,0]
[null,null,null,null,null,null,null,null,null,0,0,0,0,null,0]
[null,null,null,null,null,null,null,null,null,0,0,0,0,null,0]
[null,null,null,null,null,null,null,null,null,0,0,0,0,null,0]
[null,null,null,null,null,null,null,null,null,0,0,0,0,null,0]
[null,null,null,null,null,null,null,null,null,0,0,0,0,null,0]
[null,null,null,null,null,null,null,null,null,0,0,0,0,null,0]
[null,null,null,null,null,null,null,null,null,0,0,0,0,null,0]
[null,null,null,null,null,null,null,null,null,0,0,0,0,null,0]
[null,null,null,null,null,null,null,null,null,0,0,0,0,null,0]
[null,null,null,null,null,null,null,null,null,0,0,0,0,null,0]
[null,null,null,null,null,null,null,null,null,0,0,0,0,null,0]

{"sheet":"LK2","index":4,"n_rows":118,"n_cols":16,"rows_kept":118,"cut":false,"hidden":false,"merged":[[0,0,0,17],[1,0,1,17],[2,11,3,11],[2,12,3,12],[2,13,3,14]]}
["     Point skema Landbrugs Klasse 2"]
[]
[null,null,null,null,null,"Stævner",null,null,null,null,null,"Højeste point ","2. højeste point","2 højeste point sammenlagt",null,"Placering"]
["Navn","Traktor ","Medlemsnr",null,"Skive","Tjele","Thisted","Mors","Viborg "]
[null,null,null,null,null,null,null,null,null,0,0,{"$f":"LARGE(E5:K5,1)","v":0},{"$f":"LARGE(E5:K5,2)","v":0},null,{"$f":"L5+M5","v":0},1]
[null,null,null,null,null,null,null,null,null,0,0,0,0,null,0,2]
[null,null,null,null,null,null,null,null,null,0,0,0,0,null,0,3]
[null,null,null,null,null,null,null,null,null,0,0,0,0,null,0,4]
[null,null,null,null,null,null,null,null,null,0,0,0,0,null,0,5]
[null,null,null,null,null,null,null,null,null,0,0,0,0,null,0,6]
[null,null,null,null,null,null,null,null,null,0,0,0,0,null,0,7]
[null,null,null,null,null,null,null,null,null,0,0,0,0,null,0,8]
[null,null,null,null,null,null,null,null,null,0,0,0,0,null,0,9]
[null,null,null,null,null,null,null,null,null,0,0,0,0,null,0,10]
[null,null,null,null,null,null,null,null,null,0,0,0,0,null,0,11]
[null,null,null,null,null,null,null,null,null,0,0,0,0,null,0]
[null,null,null,null,null,null,null,null,null,0,0,0,0,null,0]
[null,null,null,null,null,null,null,null,null,0,0,0,0,null,0]
[null,null,null,null,null,null,null,null,null,0,0,0,0,null,0]
[null,null,null,null,null,null,null,null,null,0,0,0,0,null,0]
[null,null,null,null,null,null,null,null,null,0,0,0,0,null,0]
[null,null,null,null,null,null,null,null,null,0,0,0,0,null,0]
[null,null,null,null,null,null,null,null,null,0,0,0,0,null,0]
[null,null,null,null,null,null,null,null,null,0,0,0,0,null,0]
[null,null,null,null,null,null,null,null,null,0,0,0,0,null,0]
[null,null,null,null,null,null,null,null,null,0,0,0,0,null,0]
[null,null,null,null,null,null,null,null,null,0,0,0,0,null,0]
[null,null,null,null,null,null,null,null,null,0,0,0,0,null,0]
[null,null,null,null,null,null,null,null,null,0,0,0,0,null,0]
[null,null,null,null,null,null,null,null,null,0,0,0,0,null,0]
[null,null,null,null,null,null,null,null,null,0,0,0,0,null,0]
[null,null,null,null,null,null,null,null,null,0,0,0,0,null,0]
[null,null,null,null,null,null,null,null,null,0,0,0,0,null,0]
[null,null,null,null,null,null,null,null,null,0,0,0,0,null,0]
[null,null,null,null,null,null,null,null,null,0,0,0,0,null,0]
[null,null,null,null,null,null,null,null,null,0,0,0,0,null,0]
[null,null,null,null,null,null,null,null,null,0,0,{"$f":"LARGE(E37:K37,1)","v":0},{"$f":"LARGE(E37:K37,2)","v":0},null,{"$f":"L37+M37","v":0}]
[null,null,null,null,null,null,null,null,null,0,0,0,0,null,0]
[null,null,null,null,null,null,null,null,null,0,0,0,0,null,0]
[null,null,null,null,null,null,null,null,null,0,0,0,0,null,0]
[null,null,null,null,null,null,null,null,null,0,0,0,0,null,0]
[null,null,null,null,null,null,null,null,null,0,0,0,0,null,0]
[null,null,null,null,null,null,null,null,null,0,0,0,0,null,0]
[null,null,null,null,null,null,null,null,null,0,0,0,0,null,0]
[null,null,null,null,null,null,null,null,null,0,0,0,0,null,0]
[null,null,null,null,null,null,null,null,null,0,0,0,0,null,0]
[null,null,null,null,null,null,null,null,null,0,0,0,0,null,0]
[null,null,null,null,null,null,null,null,null,0,0,0,0,null,0]
[null,null,null,null,null,null,null,null,null,0,0,0,0,null,0]
[null,null,null,null,null,null,null,null,null,0,0,0,0,null,0]
[null,null,null,null,null,null,null,null,null,0,0,0,0,null,0]
[null,null,null,null,null,null,null,null,null,0,0,0,0,null,0]
[null,null,null,null,null,null,null,null,null,0,0,0,0,null,0]
[null,null,null,null,null,null,null,null,null,0,0,0,0,null,0]
[null,null,null,null,null,null,null,null,null,0,0,0,0,null,0]
[null,null,null,null,null,null,null,null,null,0,0,0,0,null,0]
[null,null,null,null,null,null,null,null,null,0,0,0,0,null,0]
[null,null,null,null,null,null,null,null,null,0,0,0,0,null,0]
[null,null,null,null,null,null,null,null,null,0,0,0,0,null,0]
[null,null,null,null,null,null,null,null,null,0,0,0,0,null,0]
[null,null,null,null,null,null,null,null,null,0,0,0,0,null,0]
[null,null,null,null,null,null,null,null,null,0,0,0,0,null,0]
[null,null,null,null,null,null,null,null,null,0,0,0,0,null,0]
[null,null,null,null,null,null,null,null,null,0,0,0,0,null,0]
[null,null,null,null,null,null,null,null,null,0,0,0,0,null,0]
[null,null,null,null,null,null,null,null,null,0,0,0,0,null,0]
[null,null,null,null,null,null,null,null,null,0,0,0,0,null,0]
[null,null,null,null,null,null,null,null,null,0,0,0,0,null,0]
[null,null,null,null,null,null,null,null,null,0,0,{"$f":"LARGE(E69:K69,1)","v":0},{"$f":"LARGE(E69:K69,2)","v":0},null,{"$f":"L69+M69","v":0}]
[null,null,null,null,null,null,null,null,null,0,0,0,0,null,0]
[null,null,null,null,null,null,null,null,null,0,0,0,0,null,0]
[null,null,null,null,null,null,null,null,null,0,0,0,0,null,0]
[null,null,null,null,null,null,null,null,null,0,0,0,0,null,0]
[null,null,null,null,null,null,null,null,null,0,0,0,0,null,0]
[null,null,null,null,null,null,null,null,null,0,0,0,0,null,0]
[null,null,null,null,null,null,null,null,null,0,0,0,0,null,0]
[null,null,null,null,null,null,null,null,null,0,0,0,0,null,0]
[null,null,null,null,null,null,null,null,null,0,0,0,0,null,0]
[null,null,null,null,null,null,null,null,null,0,0,0,0,null,0]
[null,null,null,null,null,null,null,null,null,0,0,0,0,null,0]
[null,null,null,null,null,null,null,null,null,0,0,0,0,null,0]
[null,null,null,null,null,null,null,null,null,0,0,0,0,null,0]
[null,null,null,null,null,null,null,null,null,0,0,0,0,null,0]
[null,null,null,null,null,null,null,null,null,0,0,0,0,null,0]
[null,null,null,null,null,null,null,null,null,0,0,0,0,null,0]
[null,null,null,null,null,null,null,null,null,0,0,0,0,null,0]
[null,null,null,null,null,null,null,null,null,0,0,0,0,null,0]
[null,null,null,null,null,null,null,null,null,0,0,0,0,null,0]
[null,null,null,null,null,null,null,null,null,0,0,0,0,null,0]
[null,null,null,null,null,null,null,null,null,0,0,0,0,null,0]
[null,null,null,null,null,null,null,null,null,0,0,0,0,null,0]
[null,null,null,null,null,null,null,null,null,0,0,0,0,null,0]
[null,null,null,null,null,null,null,null,null,0,0,0,0,null,0]
[null,null,null,null,null,null,null,null,null,0,0,0,0,null,0]
[null,null,null,null,null,null,null,null,null,0,0,0,0,null,0]
[null,null,null,null,null,null,null,null,null,0,0,0,0,null,0]
[null,null,null,null,null,null,null,null,null,0,0,0,0,null,0]
[null,null,null,null,null,null,null,null,null,0,0,0,0,null,0]
[null,null,null,null,null,null,null,null,null,0,0,0,0,null,0]
[null,null,null,null,null,null,null,null,null,0,0,0,0,null,0]
[null,null,null,null,null,null,null,null,null,0,0,{"$f":"LARGE(E101:K101,1)","v":0},{"$f":"LARGE(E101:K101,2)","v":0},null,{"$f":"L101+M101","v":0}]
[null,null,null,null,null,null,null,null,null,0,0,0,0,null,0]
[null,null,null,null,null,null,null,null,null,0,0,0,0,null,0]
[null,null,null,null,null,null,null,null,null,0,0,0,0,null,0]
[null,null,null,null,null,null,null,null,null,0,0,0,0,null,0]
[null,null,null,null,null,null,null,null,null,0,0,0,0,null,0]
[null,null,null,null,null,null,null,null,null,0,0,0,0,null,0]
[null,null,null,null,null,null,null,null,null,0,0,0,0,null,0]
[null,null,null,null,null,null,null,null,null,0,0,0,0,null,0]
[null,null,null,null,null,null,null,null,null,0,0,0,0,null,0]
[null,null,null,null,null,null,null,null,null,0,0,0,0,null,0]
[null,null,null,null,null,null,null,null,null,0,0,0,0,null,0]
[null,null,null,null,null,null,null,null,null,0,0,0,0,null,0]
[null,null,null,null,null,null,null,null,null,0,0,0,0,null,0]
[null,null,null,null,null,null,null,null,null,0,0,0,0,null,0]
[null,null,null,null,null,null,null,null,null,0,0,0,0,null,0]
[null,null,null,null,null,null,null,null,null,0,0,0,0,null,0]
[null,null,null,null,null,null,null,null,null,0,0,0,0,null,0]

{"sheet":"LK3","index":5,"n_rows":118,"n_cols":16,"rows_kept":118,"cut":false,"hidden":false,"merged":[[0,0,0,17],[1,0,1,17],[2,11,3,11],[2,12,3,12],[2,13,3,14]]}
["     Point skema Landbrugs Klasse 3"]
[]
[null,null,null,null,null,"Stævner",null,null,null,null,null,"Højeste point ","2. højeste point","2 højeste point sammenlagt",null,"Placering"]
["Navn","Traktor ","Medlemsnr",null,"Skive","Tjele","Thisted","Mors","Viborg "]
[null,null,null,null,null,null,null,null,null,0,0,{"$f":"LARGE(E5:K5,1)","v":0},{"$f":"LARGE(E5:K5,2)","v":0},null,{"$f":"L5+M5","v":0},1]
[null,null,null,null,null,null,null,null,null,0,0,0,0,null,0,2]
[null,null,null,null,null,null,null,null,null,0,0,0,0,null,0,3]
[null,null,null,null,null,null,null,null,null,0,0,0,0,null,0,4]
[null,null,null,null,null,null,null,null,null,0,0,0,0,null,0,5]
[null,null,null,null,null,null,null,null,null,0,0,0,0,null,0,6]
[null,null,null,null,null,null,null,null,null,0,0,0,0,null,0,7]
[null,null,null,null,null,null,null,null,null,0,0,0,0,null,0,8]
[null,null,null,null,null,null,null,null,null,0,0,0,0,null,0,9]
[null,null,null,null,null,null,null,null,null,0,0,0,0,null,0,10]
[null,null,null,null,null,null,null,null,null,0,0,0,0,null,0,11]
[null,null,null,null,null,null,null,null,null,0,0,0,0,null,0]
[null,null,null,null,null,null,null,null,null,0,0,0,0,null,0]
[null,null,null,null,null,null,null,null,null,0,0,0,0,null,0]
[null,null,null,null,null,null,null,null,null,0,0,0,0,null,0]
[null,null,null,null,null,null,null,null,null,0,0,0,0,null,0]
[null,null,null,null,null,null,null,null,null,0,0,0,0,null,0]
[null,null,null,null,null,null,null,null,null,0,0,0,0,null,0]
[null,null,null,null,null,null,null,null,null,0,0,0,0,null,0]
[null,null,null,null,null,null,null,null,null,0,0,0,0,null,0]
[null,null,null,null,null,null,null,null,null,0,0,0,0,null,0]
[null,null,null,null,null,null,null,null,null,0,0,0,0,null,0]
[null,null,null,null,null,null,null,null,null,0,0,0,0,null,0]
[null,null,null,null,null,null,null,null,null,0,0,0,0,null,0]
[null,null,null,null,null,null,null,null,null,0,0,0,0,null,0]
[null,null,null,null,null,null,null,null,null,0,0,0,0,null,0]
[null,null,null,null,null,null,null,null,null,0,0,0,0,null,0]
[null,null,null,null,null,null,null,null,null,0,0,0,0,null,0]
[null,null,null,null,null,null,null,null,null,0,0,0,0,null,0]
[null,null,null,null,null,null,null,null,null,0,0,0,0,null,0]
[null,null,null,null,null,null,null,null,null,0,0,0,0,null,0]
[null,null,null,null,null,null,null,null,null,0,0,0,0,null,0]
[null,null,null,null,null,null,null,null,null,0,0,{"$f":"LARGE(E37:K37,1)","v":0},{"$f":"LARGE(E37:K37,2)","v":0},null,{"$f":"L37+M37","v":0}]
[null,null,null,null,null,null,null,null,null,0,0,0,0,null,0]
[null,null,null,null,null,null,null,null,null,0,0,0,0,null,0]
[null,null,null,null,null,null,null,null,null,0,0,0,0,null,0]
[null,null,null,null,null,null,null,null,null,0,0,0,0,null,0]
[null,null,null,null,null,null,null,null,null,0,0,0,0,null,0]
[null,null,null,null,null,null,null,null,null,0,0,0,0,null,0]
[null,null,null,null,null,null,null,null,null,0,0,0,0,null,0]
[null,null,null,null,null,null,null,null,null,0,0,0,0,null,0]
[null,null,null,null,null,null,null,null,null,0,0,0,0,null,0]
[null,null,null,null,null,null,null,null,null,0,0,0,0,null,0]
[null,null,null,null,null,null,null,null,null,0,0,0,0,null,0]
[null,null,null,null,null,null,null,null,null,0,0,0,0,null,0]
[null,null,null,null,null,null,null,null,null,0,0,0,0,null,0]
[null,null,null,null,null,null,null,null,null,0,0,0,0,null,0]
[null,null,null,null,null,null,null,null,null,0,0,0,0,null,0]
[null,null,null,null,null,null,null,null,null,0,0,0,0,null,0]
[null,null,null,null,null,null,null,null,null,0,0,0,0,null,0]
[null,null,null,null,null,null,null,null,null,0,0,0,0,null,0]
[null,null,null,null,null,null,null,null,null,0,0,0,0,null,0]
[null,null,null,null,null,null,null,null,null,0,0,0,0,null,0]
[null,null,null,null,null,null,null,null,null,0,0,0,0,null,0]
[null,null,null,null,null,null,null,null,null,0,0,0,0,null,0]
[null,null,null,null,null,null,null,null,null,0,0,0,0,null,0]
[null,null,null,null,null,null,null,null,null,0,0,0,0,null,0]
[null,null,null,null,null,null,null,null,null,0,0,0,0,null,0]
[null,null,null,null,null,null,null,null,null,0,0,0,0,null,0]
[null,null,null,null,null,null,null,null,null,0,0,0,0,null,0]
[null,null,null,null,null,null,null,null,null,0,0,0,0,null,0]
[null,null,null,null,null,null,null,null,null,0,0,0,0,null,0]
[null,null,null,null,null,null,null,null,null,0,0,0,0,null,0]
[null,null,null,null,null,null,null,null,null,0,0,0,0,null,0]
[null,null,null,null,null,null,null,null,null,0,0,{"$f":"LARGE(E69:K69,1)","v":0},{"$f":"LARGE(E69:K69,2)","v":0},null,{"$f":"L69+M69","v":0}]
[null,null,null,null,null,null,null,null,null,0,0,0,0,null,0]
[null,null,null,null,null,null,null,null,null,0,0,0,0,null,0]
[null,null,null,null,null,null,null,null,null,0,0,0,0,null,0]
[null,null,null,null,null,null,null,null,null,0,0,0,0,null,0]
[null,null,null,null,null,null,null,null,null,0,0,0,0,null,0]
[null,null,null,null,null,null,null,null,null,0,0,0,0,null,0]
[null,null,null,null,null,null,null,null,null,0,0,0,0,null,0]
[null,null,null,null,null,null,null,null,null,0,0,0,0,null,0]
[null,null,null,null,null,null,null,null,null,0,0,0,0,null,0]
[null,null,null,null,null,null,null,null,null,0,0,0,0,null,0]
[null,null,null,null,null,null,null,null,null,0,0,0,0,null,0]
[null,null,null,null,null,null,null,null,null,0,0,0,0,null,0]
[null,null,null,null,null,null,null,null,null,0,0,0,0,null,0]
[null,null,null,null,null,null,null,null,null,0,0,0,0,null,0]
[null,null,null,null,null,null,null,null,null,0,0,0,0,null,0]
[null,null,null,null,null,null,null,null,null,0,0,0,0,null,0]
[null,null,null,null,null,null,null,null,null,0,0,0,0,null,0]
[null,null,null,null,null,null,null,null,null,0,0,0,0,null,0]
[null,null,null,null,null,null,null,null,null,0,0,0,0,null,0]
[null,null,null,null,null,null,null,null,null,0,0,0,0,null,0]
[null,null,null,null,null,null,null,null,null,0,0,0,0,null,0]
[null,null,null,null,null,null,null,null,null,0,0,0,0,null,0]
[null,null,null,null,null,null,null,null,null,0,0,0,0,null,0]
[null,null,null,null,null,null,null,null,null,0,0,0,0,null,0]
[null,null,null,null,null,null,null,null,null,0,0,0,0,null,0]
[null,null,null,null,null,null,null,null,null,0,0,0,0,null,0]
[null,null,null,null,null,null,null,null,null,0,0,0,0,null,0]
[null,null,null,null,null,null,null,null,null,0,0,0,0,null,0]
[null,null,null,null,null,null,null,null,null,0,0,0,0,null,0]
[null,null,null,null,null,null,null,null,null,0,0,0,0,null,0]
[null,null,null,null,null,null,null,null,null,0,0,0,0,null,0]
[null,null,null,null,null,null,null,null,null,0,0,{"$f":"LARGE(E101:K101,1)","v":0},{"$f":"LARGE(E101:K101,2)","v":0},null,{"$f":"L101+M101","v":0}]
[null,null,null,null,null,null,null,null,null,0,0,0,0,null,0]
[null,null,null,null,null,null,null,null,null,0,0,0,0,null,0]
[null,null,null,null,null,null,null,null,null,0,0,0,0,null,0]
[null,null,null,null,null,null,null,null,null,0,0,0,0,null,0]
[null,null,null,null,null,null,null,null,null,0,0,0,0,null,0]
[null,null,null,null,null,null,null,null,null,0,0,0,0,null,0]
[null,null,null,null,null,null,null,null,null,0,0,0,0,null,0]
[null,null,null,null,null,null,null,null,null,0,0,0,0,null,0]
[null,null,null,null,null,null,null,null,null,0,0,0,0,null,0]
[null,null,null,null,null,null,null,null,null,0,0,0,0,null,0]
[null,null,null,null,null,null,null,null,null,0,0,0,0,null,0]
[null,null,null,null,null,null,null,null,null,0,0,0,0,null,0]
[null,null,null,null,null,null,null,null,null,0,0,0,0,null,0]
[null,null,null,null,null,null,null,null,null,0,0,0,0,null,0]
[null,null,null,null,null,null,null,null,null,0,0,0,0,null,0]
[null,null,null,null,null,null,null,null,null,0,0,0,0,null,0]
[null,null,null,null,null,null,null,null,null,0,0,0,0,null,0]

{"sheet":"LK4","index":6,"n_rows":118,"n_cols":16,"rows_kept":118,"cut":false,"hidden":false,"merged":[[0,0,0,17],[1,0,1,17],[2,11,3,11],[2,12,3,12],[2,13,3,14]]}
["     Point skema Landbrugs Klasse 4"]
[]
[null,null,null,null,null,"Stævner",null,null,null,null,null,"Højeste point ","2. højeste point","2 højeste point sammenlagt",null,"Placering"]
["Navn","Traktor ","Medlemsnr",null,"Skive","Tjele","Thisted","Mors","Viborg "]
[null,null,null,null,null,null,null,null,null,0,0,{"$f":"LARGE(E5:K5,1)","v":0},{"$f":"LARGE(E5:K5,2)","v":0},null,{"$f":"L5+M5","v":0},1]
[null,null,null,null,null,null,null,null,null,0,0,0,0,null,0,2]
[null,null,null,null,null,null,null,null,null,0,0,0,0,null,0,3]
[null,null,null,null,null,null,null,null,null,0,0,0,0,null,0,4]
[null,null,null,null,null,null,null,null,null,0,0,0,0,null,0,5]
[null,null,null,null,null,null,null,null,null,0,0,0,0,null,0,6]
[null,null,null,null,null,null,null,null,null,0,0,0,0,null,0,7]
[null,null,null,null,null,null,null,null,null,0,0,0,0,null,0,8]
[null,null,null,null,null,null,null,null,null,0,0,0,0,null,0,9]
[null,null,null,null,null,null,null,null,null,0,0,0,0,null,0,10]
[null,null,null,null,null,null,null,null,null,0,0,0,0,null,0,11]
[null,null,null,null,null,null,null,null,null,0,0,0,0,null,0]
[null,null,null,null,null,null,null,null,null,0,0,0,0,null,0]
[null,null,null,null,null,null,null,null,null,0,0,0,0,null,0]
[null,null,null,null,null,null,null,null,null,0,0,0,0,null,0]
[null,null,null,null,null,null,null,null,null,0,0,0,0,null,0]
[null,null,null,null,null,null,null,null,null,0,0,0,0,null,0]
[null,null,null,null,null,null,null,null,null,0,0,0,0,null,0]
[null,null,null,null,null,null,null,null,null,0,0,0,0,null,0]
[null,null,null,null,null,null,null,null,null,0,0,0,0,null,0]
[null,null,null,null,null,null,null,null,null,0,0,0,0,null,0]
[null,null,null,null,null,null,null,null,null,0,0,0,0,null,0]
[null,null,null,null,null,null,null,null,null,0,0,0,0,null,0]
[null,null,null,null,null,null,null,null,null,0,0,0,0,null,0]
[null,null,null,null,null,null,null,null,null,0,0,0,0,null,0]
[null,null,null,null,null,null,null,null,null,0,0,0,0,null,0]
[null,null,null,null,null,null,null,null,null,0,0,0,0,null,0]
[null,null,null,null,null,null,null,null,null,0,0,0,0,null,0]
[null,null,null,null,null,null,null,null,null,0,0,0,0,null,0]
[null,null,null,null,null,null,null,null,null,0,0,0,0,null,0]
[null,null,null,null,null,null,null,null,null,0,0,0,0,null,0]
[null,null,null,null,null,null,null,null,null,0,0,0,0,null,0]
[null,null,null,null,null,null,null,null,null,0,0,{"$f":"LARGE(E37:K37,1)","v":0},{"$f":"LARGE(E37:K37,2)","v":0},null,{"$f":"L37+M37","v":0}]
[null,null,null,null,null,null,null,null,null,0,0,0,0,null,0]
[null,null,null,null,null,null,null,null,null,0,0,0,0,null,0]
[null,null,null,null,null,null,null,null,null,0,0,0,0,null,0]
[null,null,null,null,null,null,null,null,null,0,0,0,0,null,0]
[null,null,null,null,null,null,null,null,null,0,0,0,0,null,0]
[null,null,null,null,null,null,null,null,null,0,0,0,0,null,0]
[null,null,null,null,null,null,null,null,null,0,0,0,0,null,0]
[null,null,null,null,null,null,null,null,null,0,0,0,0,null,0]
[null,null,null,null,null,null,null,null,null,0,0,0,0,null,0]
[null,null,null,null,null,null,null,null,null,0,0,0,0,null,0]
[null,null,null,null,null,null,null,null,null,0,0,0,0,null,0]
[null,null,null,null,null,null,null,null,null,0,0,0,0,null,0]
[null,null,null,null,null,null,null,null,null,0,0,0,0,null,0]
[null,null,null,null,null,null,null,null,null,0,0,0,0,null,0]
[null,null,null,null,null,null,null,null,null,0,0,0,0,null,0]
[null,null,null,null,null,null,null,null,null,0,0,0,0,null,0]
[null,null,null,null,null,null,null,null,null,0,0,0,0,null,0]
[null,null,null,null,null,null,null,null,null,0,0,0,0,null,0]
[null,null,null,null,null,null,null,null,null,0,0,0,0,null,0]
[null,null,null,null,null,null,null,null,null,0,0,0,0,null,0]
[null,null,null,null,null,null,null,null,null,0,0,0,0,null,0]
[null,null,null,null,null,null,null,null,null,0,0,0,0,null,0]
[null,null,null,null,null,null,null,null,null,0,0,0,0,null,0]
[null,null,null,null,null,null,null,null,null,0,0,0,0,null,0]
[null,null,null,null,null,null,null,null,null,0,0,0,0,null,0]
[null,null,null,null,null,null,null,null,null,0,0,0,0,null,0]
[null,null,null,null,null,null,null,null,null,0,0,0,0,null,0]
[null,null,null,null,null,null,null,null,null,0,0,0,0,null,0]
[null,null,null,null,null,null,null,null,null,0,0,0,0,null,0]
[null,null,null,null,null,null,null,null,null,0,0,0,0,null,0]
[null,null,null,null,null,null,null,null,null,0,0,0,0,null,0]
[null,null,null,null,null,null,null,null,null,0,0,{"$f":"LARGE(E69:K69,1)","v":0},{"$f":"LARGE(E69:K69,2)","v":0},null,{"$f":"L69+M69","v":0}]
[null,null,null,null,null,null,null,null,null,0,0,0,0,null,0]
[null,null,null,null,null,null,null,null,null,0,0,0,0,null,0]
[null,null,null,null,null,null,null,null,null,0,0,0,0,null,0]
[null,null,null,null,null,null,null,null,null,0,0,0,0,null,0]
[null,null,null,null,null,null,null,null,null,0,0,0,0,null,0]
[null,null,null,null,null,null,null,null,null,0,0,0,0,null,0]
[null,null,null,null,null,null,null,null,null,0,0,0,0,null,0]
[null,null,null,null,null,null,null,null,null,0,0,0,0,null,0]
[null,null,null,null,null,null,null,null,null,0,0,0,0,null,0]
[null,null,null,null,null,null,null,null,null,0,0,0,0,null,0]
[null,null,null,null,null,null,null,null,null,0,0,0,0,null,0]
[null,null,null,null,null,null,null,null,null,0,0,0,0,null,0]
[null,null,null,null,null,null,null,null,null,0,0,0,0,null,0]
[null,null,null,null,null,null,null,null,null,0,0,0,0,null,0]
[null,null,null,null,null,null,null,null,null,0,0,0,0,null,0]
[null,null,null,null,null,null,null,null,null,0,0,0,0,null,0]
[null,null,null,null,null,null,null,null,null,0,0,0,0,null,0]
[null,null,null,null,null,null,null,null,null,0,0,0,0,null,0]
[null,null,null,null,null,null,null,null,null,0,0,0,0,null,0]
[null,null,null,null,null,null,null,null,null,0,0,0,0,null,0]
[null,null,null,null,null,null,null,null,null,0,0,0,0,null,0]
[null,null,null,null,null,null,null,null,null,0,0,0,0,null,0]
[null,null,null,null,null,null,null,null,null,0,0,0,0,null,0]
[null,null,null,null,null,null,null,null,null,0,0,0,0,null,0]
[null,null,null,null,null,null,null,null,null,0,0,0,0,null,0]
[null,null,null,null,null,null,null,null,null,0,0,0,0,null,0]
[null,null,null,null,null,null,null,null,null,0,0,0,0,null,0]
[null,null,null,null,null,null,null,null,null,0,0,0,0,null,0]
[null,null,null,null,null,null,null,null,null,0,0,0,0,null,0]
[null,null,null,null,null,null,null,null,null,0,0,0,0,null,0]
[null,null,null,null,null,null,null,null,null,0,0,0,0,null,0]
[null,null,null,null,null,null,null,null,null,0,0,{"$f":"LARGE(E101:K101,1)","v":0},{"$f":"LARGE(E101:K101,2)","v":0},null,{"$f":"L101+M101","v":0}]
[null,null,null,null,null,null,null,null,null,0,0,0,0,null,0]
[null,null,null,null,null,null,null,null,null,0,0,0,0,null,0]
[null,null,null,null,null,null,null,null,null,0,0,0,0,null,0]
[null,null,null,null,null,null,null,null,null,0,0,0,0,null,0]
[null,null,null,null,null,null,null,null,null,0,0,0,0,null,0]
[null,null,null,null,null,null,null,null,null,0,0,0,0,null,0]
[null,null,null,null,null,null,null,null,null,0,0,0,0,null,0]
[null,null,null,null,null,null,null,null,null,0,0,0,0,null,0]
[null,null,null,null,null,null,null,null,null,0,0,0,0,null,0]
[null,null,null,null,null,null,null,null,null,0,0,0,0,null,0]
[null,null,null,null,null,null,null,null,null,0,0,0,0,null,0]
[null,null,null,null,null,null,null,null,null,0,0,0,0,null,0]
[null,null,null,null,null,null,null,null,null,0,0,0,0,null,0]
[null,null,null,null,null,null,null,null,null,0,0,0,0,null,0]
[null,null,null,null,null,null,null,null,null,0,0,0,0,null,0]
[null,null,null,null,null,null,null,null,null,0,0,0,0,null,0]
[null,null,null,null,null,null,null,null,null,0,0,0,0,null,0]

{"sheet":"SSK0","index":7,"n_rows":118,"n_cols":16,"rows_kept":118,"cut":false,"hidden":false,"merged":[[0,0,0,17],[1,0,1,17],[2,11,3,11],[2,12,3,12],[2,13,3,14]]}
["            Point skema Super Standard Klasse 0"]
[]
[null,null,null,null,null,"Stævner",null,null,null,null,null,"Højeste point ","2. højeste point","2 højeste point sammenlagt",null,"Placering"]
["Navn","Traktor ","Medlemsnr",null,"Skive","Tjele","Thisted","Mors","Viborg "]
[null,null,null,null,null,null,null,null,null,0,0,{"$f":"LARGE(E5:K5,1)","v":0},{"$f":"LARGE(E5:K5,2)","v":0},null,{"$f":"L5+M5","v":0},1]
[null,null,null,null,null,null,null,null,null,0,0,0,0,null,0,2]
[null,null,null,null,null,null,null,null,null,0,0,0,0,null,0,3]
[null,null,null,null,null,null,null,null,null,0,0,0,0,null,0,4]
[null,null,null,null,null,null,null,null,null,0,0,0,0,null,0,5]
[null,null,null,null,null,null,null,null,null,0,0,0,0,null,0,6]
[null,null,null,null,null,null,null,null,null,0,0,0,0,null,0,7]
[null,null,null,null,null,null,null,null,null,0,0,0,0,null,0,8]
[null,null,null,null,null,null,null,null,null,0,0,0,0,null,0,9]
[null,null,null,null,null,null,null,null,null,0,0,0,0,null,0,10]
[null,null,null,null,null,null,null,null,null,0,0,0,0,null,0,11]
[null,null,null,null,null,null,null,null,null,0,0,0,0,null,0]
[null,null,null,null,null,null,null,null,null,0,0,0,0,null,0]
[null,null,null,null,null,null,null,null,null,0,0,0,0,null,0]
[null,null,null,null,null,null,null,null,null,0,0,0,0,null,0]
[null,null,null,null,null,null,null,null,null,0,0,0,0,null,0]
[null,null,null,null,null,null,null,null,null,0,0,0,0,null,0]
[null,null,null,null,null,null,null,null,null,0,0,0,0,null,0]
[null,null,null,null,null,null,null,null,null,0,0,0,0,null,0]
[null,null,null,null,null,null,null,null,null,0,0,0,0,null,0]
[null,null,null,null,null,null,null,null,null,0,0,0,0,null,0]
[null,null,null,null,null,null,null,null,null,0,0,0,0,null,0]
[null,null,null,null,null,null,null,null,null,0,0,0,0,null,0]
[null,null,null,null,null,null,null,null,null,0,0,0,0,null,0]
[null,null,null,null,null,null,null,null,null,0,0,0,0,null,0]
[null,null,null,null,null,null,null,null,null,0,0,0,0,null,0]
[null,null,null,null,null,null,null,null,null,0,0,0,0,null,0]
[null,null,null,null,null,null,null,null,null,0,0,0,0,null,0]
[null,null,null,null,null,null,null,null,null,0,0,0,0,null,0]
[null,null,null,null,null,null,null,null,null,0,0,0,0,null,0]
[null,null,null,null,null,null,null,null,null,0,0,0,0,null,0]
[null,null,null,null,null,null,null,null,null,0,0,0,0,null,0]
[null,null,null,null,null,null,null,null,null,0,0,{"$f":"LARGE(E37:K37,1)","v":0},{"$f":"LARGE(E37:K37,2)","v":0},null,{"$f":"L37+M37","v":0}]
[null,null,null,null,null,null,null,null,null,0,0,0,0,null,0]
[null,null,null,null,null,null,null,null,null,0,0,0,0,null,0]
[null,null,null,null,null,null,null,null,null,0,0,0,0,null,0]
[null,null,null,null,null,null,null,null,null,0,0,0,0,null,0]
[null,null,null,null,null,null,null,null,null,0,0,0,0,null,0]
[null,null,null,null,null,null,null,null,null,0,0,0,0,null,0]
[null,null,null,null,null,null,null,null,null,0,0,0,0,null,0]
[null,null,null,null,null,null,null,null,null,0,0,0,0,null,0]
[null,null,null,null,null,null,null,null,null,0,0,0,0,null,0]
[null,null,null,null,null,null,null,null,null,0,0,0,0,null,0]
[null,null,null,null,null,null,null,null,null,0,0,0,0,null,0]
[null,null,null,null,null,null,null,null,null,0,0,0,0,null,0]
[null,null,null,null,null,null,null,null,null,0,0,0,0,null,0]
[null,null,null,null,null,null,null,null,null,0,0,0,0,null,0]
[null,null,null,null,null,null,null,null,null,0,0,0,0,null,0]
[null,null,null,null,null,null,null,null,null,0,0,0,0,null,0]
[null,null,null,null,null,null,null,null,null,0,0,0,0,null,0]
[null,null,null,null,null,null,null,null,null,0,0,0,0,null,0]
[null,null,null,null,null,null,null,null,null,0,0,0,0,null,0]
[null,null,null,null,null,null,null,null,null,0,0,0,0,null,0]
[null,null,null,null,null,null,null,null,null,0,0,0,0,null,0]
[null,null,null,null,null,null,null,null,null,0,0,0,0,null,0]
[null,null,null,null,null,null,null,null,null,0,0,0,0,null,0]
[null,null,null,null,null,null,null,null,null,0,0,0,0,null,0]
[null,null,null,null,null,null,null,null,null,0,0,0,0,null,0]
[null,null,null,null,null,null,null,null,null,0,0,0,0,null,0]
[null,null,null,null,null,null,null,null,null,0,0,0,0,null,0]
[null,null,null,null,null,null,null,null,null,0,0,0,0,null,0]
[null,null,null,null,null,null,null,null,null,0,0,0,0,null,0]
[null,null,null,null,null,null,null,null,null,0,0,0,0,null,0]
[null,null,null,null,null,null,null,null,null,0,0,0,0,null,0]
[null,null,null,null,null,null,null,null,null,0,0,{"$f":"LARGE(E69:K69,1)","v":0},{"$f":"LARGE(E69:K69,2)","v":0},null,{"$f":"L69+M69","v":0}]
[null,null,null,null,null,null,null,null,null,0,0,0,0,null,0]
[null,null,null,null,null,null,null,null,null,0,0,0,0,null,0]
[null,null,null,null,null,null,null,null,null,0,0,0,0,null,0]
[null,null,null,null,null,null,null,null,null,0,0,0,0,null,0]
[null,null,null,null,null,null,null,null,null,0,0,0,0,null,0]
[null,null,null,null,null,null,null,null,null,0,0,0,0,null,0]
[null,null,null,null,null,null,null,null,null,0,0,0,0,null,0]
[null,null,null,null,null,null,null,null,null,0,0,0,0,null,0]
[null,null,null,null,null,null,null,null,null,0,0,0,0,null,0]
[null,null,null,null,null,null,null,null,null,0,0,0,0,null,0]
[null,null,null,null,null,null,null,null,null,0,0,0,0,null,0]
[null,null,null,null,null,null,null,null,null,0,0,0,0,null,0]
[null,null,null,null,null,null,null,null,null,0,0,0,0,null,0]
[null,null,null,null,null,null,null,null,null,0,0,0,0,null,0]
[null,null,null,null,null,null,null,null,null,0,0,0,0,null,0]
[null,null,null,null,null,null,null,null,null,0,0,0,0,null,0]
[null,null,null,null,null,null,null,null,null,0,0,0,0,null,0]
[null,null,null,null,null,null,null,null,null,0,0,0,0,null,0]
[null,null,null,null,null,null,null,null,null,0,0,0,0,null,0]
[null,null,null,null,null,null,null,null,null,0,0,0,0,null,0]
[null,null,null,null,null,null,null,null,null,0,0,0,0,null,0]
[null,null,null,null,null,null,null,null,null,0,0,0,0,null,0]
[null,null,null,null,null,null,null,null,null,0,0,0,0,null,0]
[null,null,null,null,null,null,null,null,null,0,0,0,0,null,0]
[null,null,null,null,null,null,null,null,null,0,0,0,0,null,0]
[null,null,null,null,null,null,null,null,null,0,0,0,0,null,0]
[null,null,null,null,null,null,null,null,null,0,0,0,0,null,0]
[null,null,null,null,null,null,null,null,null,0,0,0,0,null,0]
[null,null,null,null,null,null,null,null,null,0,0,0,0,null,0]
[null,null,null,null,null,null,null,null,null,0,0,0,0,null,0]
[null,null,null,null,null,null,null,null,null,0,0,0,0,null,0]
[null,null,null,null,null,null,null,null,null,0,0,{"$f":"LARGE(E101:K101,1)","v":0},{"$f":"LARGE(E101:K101,2)","v":0},null,{"$f":"L101+M101","v":0}]
[null,null,null,null,null,null,null,null,null,0,0,0,0,null,0]
[null,null,null,null,null,null,null,null,null,0,0,0,0,null,0]
[null,null,null,null,null,null,null,null,null,0,0,0,0,null,0]
[null,null,null,null,null,null,null,null,null,0,0,0,0,null,0]
[null,null,null,null,null,null,null,null,null,0,0,0,0,null,0]
[null,null,null,null,null,null,null,null,null,0,0,0,0,null,0]
[null,null,null,null,null,null,null,null,null,0,0,0,0,null,0]
[null,null,null,null,null,null,null,null,null,0,0,0,0,null,0]
[null,null,null,null,null,null,null,null,null,0,0,0,0,null,0]
[null,null,null,null,null,null,null,null,null,0,0,0,0,null,0]
[null,null,null,null,null,null,null,null,null,0,0,0,0,null,0]
[null,null,null,null,null,null,null,null,null,0,0,0,0,null,0]
[null,null,null,null,null,null,null,null,null,0,0,0,0,null,0]
[null,null,null,null,null,null,null,null,null,0,0,0,0,null,0]
[null,null,null,null,null,null,null,null,null,0,0,0,0,null,0]
[null,null,null,null,null,null,null,null,null,0,0,0,0,null,0]
[null,null,null,null,null,null,null,null,null,0,0,0,0,null,0]

{"sheet":"SSK1","index":8,"n_rows":118,"n_cols":16,"rows_kept":118,"cut":false,"hidden":false,"merged":[[0,0,0,17],[1,0,1,17],[2,11,3,11],[2,12,3,12],[2,13,3,14]]}
["            Point skema Super Standard Klasse 1"]
[]
[null,null,null,null,null,"Stævner",null,null,null,null,null,"Højeste point ","2. højeste point","2 højeste point sammenlagt",null,"Placering"]
["Navn","Traktor ","Medlemsnr",null,"Skive","Tjele","Thisted","Mors","Viborg "]
[null,null,null,null,null,null,null,null,null,0,0,{"$f":"LARGE(E5:K5,1)","v":0},{"$f":"LARGE(E5:K5,2)","v":0},null,{"$f":"L5+M5","v":0},1]
[null,null,null,null,null,null,null,null,null,0,0,0,0,null,0,2]
[null,null,null,null,null,null,null,null,null,0,0,0,0,null,0,3]
[null,null,null,null,null,null,null,null,null,0,0,0,0,null,0,4]
[null,null,null,null,null,null,null,null,null,0,0,0,0,null,0,5]
[null,null,null,null,null,null,null,null,null,0,0,0,0,null,0,6]
[null,null,null,null,null,null,null,null,null,0,0,0,0,null,0,7]
[null,null,null,null,null,null,null,null,null,0,0,0,0,null,0,8]
[null,null,null,null,null,null,null,null,null,0,0,0,0,null,0,9]
[null,null,null,null,null,null,null,null,null,0,0,0,0,null,0,10]
[null,null,null,null,null,null,null,null,null,0,0,0,0,null,0,11]
[null,null,null,null,null,null,null,null,null,0,0,0,0,null,0]
[null,null,null,null,null,null,null,null,null,0,0,0,0,null,0]
[null,null,null,null,null,null,null,null,null,0,0,0,0,null,0]
[null,null,null,null,null,null,null,null,null,0,0,0,0,null,0]
[null,null,null,null,null,null,null,null,null,0,0,0,0,null,0]
[null,null,null,null,null,null,null,null,null,0,0,0,0,null,0]
[null,null,null,null,null,null,null,null,null,0,0,0,0,null,0]
[null,null,null,null,null,null,null,null,null,0,0,0,0,null,0]
[null,null,null,null,null,null,null,null,null,0,0,0,0,null,0]
[null,null,null,null,null,null,null,null,null,0,0,0,0,null,0]
[null,null,null,null,null,null,null,null,null,0,0,0,0,null,0]
[null,null,null,null,null,null,null,null,null,0,0,0,0,null,0]
[null,null,null,null,null,null,null,null,null,0,0,0,0,null,0]
[null,null,null,null,null,null,null,null,null,0,0,0,0,null,0]
[null,null,null,null,null,null,null,null,null,0,0,0,0,null,0]
[null,null,null,null,null,null,null,null,null,0,0,0,0,null,0]
[null,null,null,null,null,null,null,null,null,0,0,0,0,null,0]
[null,null,null,null,null,null,null,null,null,0,0,0,0,null,0]
[null,null,null,null,null,null,null,null,null,0,0,0,0,null,0]
[null,null,null,null,null,null,null,null,null,0,0,0,0,null,0]
[null,null,null,null,null,null,null,null,null,0,0,0,0,null,0]
[null,null,null,null,null,null,null,null,null,0,0,{"$f":"LARGE(E37:K37,1)","v":0},{"$f":"LARGE(E37:K37,2)","v":0},null,{"$f":"L37+M37","v":0}]
[null,null,null,null,null,null,null,null,null,0,0,0,0,null,0]
[null,null,null,null,null,null,null,null,null,0,0,0,0,null,0]
[null,null,null,null,null,null,null,null,null,0,0,0,0,null,0]
[null,null,null,null,null,null,null,null,null,0,0,0,0,null,0]
[null,null,null,null,null,null,null,null,null,0,0,0,0,null,0]
[null,null,null,null,null,null,null,null,null,0,0,0,0,null,0]
[null,null,null,null,null,null,null,null,null,0,0,0,0,null,0]
[null,null,null,null,null,null,null,null,null,0,0,0,0,null,0]
[null,null,null,null,null,null,null,null,null,0,0,0,0,null,0]
[null,null,null,null,null,null,null,null,null,0,0,0,0,null,0]
[null,null,null,null,null,null,null,null,null,0,0,0,0,null,0]
[null,null,null,null,null,null,null,null,null,0,0,0,0,null,0]
[null,null,null,null,null,null,null,null,null,0,0,0,0,null,0]
[null,null,null,null,null,null,null,null,null,0,0,0,0,null,0]
[null,null,null,null,null,null,null,null,null,0,0,0,0,null,0]
[null,null,null,null,null,null,null,null,null,0,0,0,0,null,0]
[null,null,null,null,null,null,null,null,null,0,0,0,0,null,0]
[null,null,null,null,null,null,null,null,null,0,0,0,0,null,0]
[null,null,null,null,null,null,null,null,null,0,0,0,0,null,0]
[null,null,null,null,null,null,null,null,null,0,0,0,0,null,0]
[null,null,null,null,null,null,null,null,null,0,0,0,0,null,0]
[null,null,null,null,null,null,null,null,null,0,0,0,0,null,0]
[null,null,null,null,null,null,null,null,null,0,0,0,0,null,0]
[null,null,null,null,null,null,null,null,null,0,0,0,0,null,0]
[null,null,null,null,null,null,null,null,null,0,0,0,0,null,0]
[null,null,null,null,null,null,null,null,null,0,0,0,0,null,0]
[null,null,null,null,null,null,null,null,null,0,0,0,0,null,0]
[null,null,null,null,null,null,null,null,null,0,0,0,0,null,0]
[null,null,null,null,null,null,null,null,null,0,0,0,0,null,0]
[null,null,null,null,null,null,null,null,null,0,0,0,0,null,0]
[null,null,null,null,null,null,null,null,null,0,0,0,0,null,0]
[null,null,null,null,null,null,null,null,null,0,0,{"$f":"LARGE(E69:K69,1)","v":0},{"$f":"LARGE(E69:K69,2)","v":0},null,{"$f":"L69+M69","v":0}]
[null,null,null,null,null,null,null,null,null,0,0,0,0,null,0]
[null,null,null,null,null,null,null,null,null,0,0,0,0,null,0]
[null,null,null,null,null,null,null,null,null,0,0,0,0,null,0]
[null,null,null,null,null,null,null,null,null,0,0,0,0,null,0]
[null,null,null,null,null,null,null,null,null,0,0,0,0,null,0]
[null,null,null,null,null,null,null,null,null,0,0,0,0,null,0]
[null,null,null,null,null,null,null,null,null,0,0,0,0,null,0]
[null,null,null,null,null,null,null,null,null,0,0,0,0,null,0]
[null,null,null,null,null,null,null,null,null,0,0,0,0,null,0]
[null,null,null,null,null,null,null,null,null,0,0,0,0,null,0]
[null,null,null,null,null,null,null,null,null,0,0,0,0,null,0]
[null,null,null,null,null,null,null,null,null,0,0,0,0,null,0]
[null,null,null,null,null,null,null,null,null,0,0,0,0,null,0]
[null,null,null,null,null,null,null,null,null,0,0,0,0,null,0]
[null,null,null,null,null,null,null,null,null,0,0,0,0,null,0]
[null,null,null,null,null,null,null,null,null,0,0,0,0,null,0]
[null,null,null,null,null,null,null,null,null,0,0,0,0,null,0]
[null,null,null,null,null,null,null,null,null,0,0,0,0,null,0]
[null,null,null,null,null,null,null,null,null,0,0,0,0,null,0]
[null,null,null,null,null,null,null,null,null,0,0,0,0,null,0]
[null,null,null,null,null,null,null,null,null,0,0,0,0,null,0]
[null,null,null,null,null,null,null,null,null,0,0,0,0,null,0]
[null,null,null,null,null,null,null,null,null,0,0,0,0,null,0]
[null,null,null,null,null,null,null,null,null,0,0,0,0,null,0]
[null,null,null,null,null,null,null,null,null,0,0,0,0,null,0]
[null,null,null,null,null,null,null,null,null,0,0,0,0,null,0]
[null,null,null,null,null,null,null,null,null,0,0,0,0,null,0]
[null,null,null,null,null,null,null,null,null,0,0,0,0,null,0]
[null,null,null,null,null,null,null,null,null,0,0,0,0,null,0]
[null,null,null,null,null,null,null,null,null,0,0,0,0,null,0]
[null,null,null,null,null,null,null,null,null,0,0,0,0,null,0]
[null,null,null,null,null,null,null,null,null,0,0,{"$f":"LARGE(E101:K101,1)","v":0},{"$f":"LARGE(E101:K101,2)","v":0},null,{"$f":"L101+M101","v":0}]
[null,null,null,null,null,null,null,null,null,0,0,0,0,null,0]
[null,null,null,null,null,null,null,null,null,0,0,0,0,null,0]
[null,null,null,null,null,null,null,null,null,0,0,0,0,null,0]
[null,null,null,null,null,null,null,null,null,0,0,0,0,null,0]
[null,null,null,null,null,null,null,null,null,0,0,0,0,null,0]
[null,null,null,null,null,null,null,null,null,0,0,0,0,null,0]
[null,null,null,null,null,null,null,null,null,0,0,0,0,null,0]
[null,null,null,null,null,null,null,null,null,0,0,0,0,null,0]
[null,null,null,null,null,null,null,null,null,0,0,0,0,null,0]
[null,null,null,null,null,null,null,null,null,0,0,0,0,null,0]
[null,null,null,null,null,null,null,null,null,0,0,0,0,null,0]
[null,null,null,null,null,null,null,null,null,0,0,0,0,null,0]
[null,null,null,null,null,null,null,null,null,0,0,0,0,null,0]
[null,null,null,null,null,null,null,null,null,0,0,0,0,null,0]
[null,null,null,null,null,null,null,null,null,0,0,0,0,null,0]
[null,null,null,null,null,null,null,null,null,0,0,0,0,null,0]
[null,null,null,null,null,null,null,null,null,0,0,0,0,null,0]

{"sheet":"SSK2","index":9,"n_rows":118,"n_cols":16,"rows_kept":118,"cut":false,"hidden":false,"merged":[[0,0,0,17],[1,0,1,17],[2,11,3,11],[2,12,3,12],[2,13,3,14]]}
["            Point skema Super Standard Klasse 2"]
[]
[null,null,null,null,null,"Stævner",null,null,null,null,null,"Højeste point ","2. højeste point","2 højeste point sammenlagt",null,"Placering"]
["Navn","Traktor ","Medlemsnr",null,"Skive","Tjele","Thisted","Mors","Viborg "]
[null,null,null,null,null,null,null,null,null,0,0,{"$f":"LARGE(E5:K5,1)","v":0},{"$f":"LARGE(E5:K5,2)","v":0},null,{"$f":"L5+M5","v":0},1]
[null,null,null,null,null,null,null,null,null,0,0,0,0,null,0,2]
[null,null,null,null,null,null,null,null,null,0,0,0,0,null,0,3]
[null,null,null,null,null,null,null,null,null,0,0,0,0,null,0,4]
[null,null,null,null,null,null,null,null,null,0,0,0,0,null,0,5]
[null,null,null,null,null,null,null,null,null,0,0,0,0,null,0,6]
[null,null,null,null,null,null,null,null,null,0,0,0,0,null,0,7]
[null,null,null,null,null,null,null,null,null,0,0,0,0,null,0,8]
[null,null,null,null,null,null,null,null,null,0,0,0,0,null,0,9]
[null,null,null,null,null,null,null,null,null,0,0,0,0,null,0,10]
[null,null,null,null,null,null,null,null,null,0,0,0,0,null,0,11]
[null,null,null,null,null,null,null,null,null,0,0,0,0,null,0]
[null,null,null,null,null,null,null,null,null,0,0,0,0,null,0]
[null,null,null,null,null,null,null,null,null,0,0,0,0,null,0]
[null,null,null,null,null,null,null,null,null,0,0,0,0,null,0]
[null,null,null,null,null,null,null,null,null,0,0,0,0,null,0]
[null,null,null,null,null,null,null,null,null,0,0,0,0,null,0]
[null,null,null,null,null,null,null,null,null,0,0,0,0,null,0]
[null,null,null,null,null,null,null,null,null,0,0,0,0,null,0]
[null,null,null,null,null,null,null,null,null,0,0,0,0,null,0]
[null,null,null,null,null,null,null,null,null,0,0,0,0,null,0]
[null,null,null,null,null,null,null,null,null,0,0,0,0,null,0]
[null,null,null,null,null,null,null,null,null,0,0,0,0,null,0]
[null,null,null,null,null,null,null,null,null,0,0,0,0,null,0]
[null,null,null,null,null,null,null,null,null,0,0,0,0,null,0]
[null,null,null,null,null,null,null,null,null,0,0,0,0,null,0]
[null,null,null,null,null,null,null,null,null,0,0,0,0,null,0]
[null,null,null,null,null,null,null,null,null,0,0,0,0,null,0]
[null,null,null,null,null,null,null,null,null,0,0,0,0,null,0]
[null,null,null,null,null,null,null,null,null,0,0,0,0,null,0]
[null,null,null,null,null,null,null,null,null,0,0,0,0,null,0]
[null,null,null,null,null,null,null,null,null,0,0,0,0,null,0]
[null,null,null,null,null,null,null,null,null,0,0,{"$f":"LARGE(E37:K37,1)","v":0},{"$f":"LARGE(E37:K37,2)","v":0},null,{"$f":"L37+M37","v":0}]
[null,null,null,null,null,null,null,null,null,0,0,0,0,null,0]
[null,null,null,null,null,null,null,null,null,0,0,0,0,null,0]
[null,null,null,null,null,null,null,null,null,0,0,0,0,null,0]
[null,null,null,null,null,null,null,null,null,0,0,0,0,null,0]
[null,null,null,null,null,null,null,null,null,0,0,0,0,null,0]
[null,null,null,null,null,null,null,null,null,0,0,0,0,null,0]
[null,null,null,null,null,null,null,null,null,0,0,0,0,null,0]
[null,null,null,null,null,null,null,null,null,0,0,0,0,null,0]
[null,null,null,null,null,null,null,null,null,0,0,0,0,null,0]
[null,null,null,null,null,null,null,null,null,0,0,0,0,null,0]
[null,null,null,null,null,null,null,null,null,0,0,0,0,null,0]
[null,null,null,null,null,null,null,null,null,0,0,0,0,null,0]
[null,null,null,null,null,null,null,null,null,0,0,0,0,null,0]
[null,null,null,null,null,null,null,null,null,0,0,0,0,null,0]
[null,null,null,null,null,null,null,null,null,0,0,0,0,null,0]
[null,null,null,null,null,null,null,null,null,0,0,0,0,null,0]
[null,null,null,null,null,null,null,null,null,0,0,0,0,null,0]
[null,null,null,null,null,null,null,null,null,0,0,0,0,null,0]
[null,null,null,null,null,null,null,null,null,0,0,0,0,null,0]
[null,null,null,null,null,null,null,null,null,0,0,0,0,null,0]
[null,null,null,null,null,null,null,null,null,0,0,0,0,null,0]
[null,null,null,null,null,null,null,null,null,0,0,0,0,null,0]
[null,null,null,null,null,null,null,null,null,0,0,0,0,null,0]
[null,null,null,null,null,null,null,null,null,0,0,0,0,null,0]
[null,null,null,null,null,null,null,null,null,0,0,0,0,null,0]
[null,null,null,null,null,null,null,null,null,0,0,0,0,null,0]
[null,null,null,null,null,null,null,null,null,0,0,0,0,null,0]
[null,null,null,null,null,null,null,null,null,0,0,0,0,null,0]
[null,null,null,null,null,null,null,null,null,0,0,0,0,null,0]
[null,null,null,null,null,null,null,null,null,0,0,0,0,null,0]
[null,null,null,null,null,null,null,null,null,0,0,0,0,null,0]
[null,null,null,null,null,null,null,null,null,0,0,{"$f":"LARGE(E69:K69,1)","v":0},{"$f":"LARGE(E69:K69,2)","v":0},null,{"$f":"L69+M69","v":0}]
[null,null,null,null,null,null,null,null,null,0,0,0,0,null,0]
[null,null,null,null,null,null,null,null,null,0,0,0,0,null,0]
[null,null,null,null,null,null,null,null,null,0,0,0,0,null,0]
[null,null,null,null,null,null,null,null,null,0,0,0,0,null,0]
[null,null,null,null,null,null,null,null,null,0,0,0,0,null,0]
[null,null,null,null,null,null,null,null,null,0,0,0,0,null,0]
[null,null,null,null,null,null,null,null,null,0,0,0,0,null,0]
[null,null,null,null,null,null,null,null,null,0,0,0,0,null,0]
[null,null,null,null,null,null,null,null,null,0,0,0,0,null,0]
[null,null,null,null,null,null,null,null,null,0,0,0,0,null,0]
[null,null,null,null,null,null,null,null,null,0,0,0,0,null,0]
[null,null,null,null,null,null,null,null,null,0,0,0,0,null,0]
[null,null,null,null,null,null,null,null,null,0,0,0,0,null,0]
[null,null,null,null,null,null,null,null,null,0,0,0,0,null,0]
[null,null,null,null,null,null,null,null,null,0,0,0,0,null,0]
[null,null,null,null,null,null,null,null,null,0,0,0,0,null,0]
[null,null,null,null,null,null,null,null,null,0,0,0,0,null,0]
[null,null,null,null,null,null,null,null,null,0,0,0,0,null,0]
[null,null,null,null,null,null,null,null,null,0,0,0,0,null,0]
[null,null,null,null,null,null,null,null,null,0,0,0,0,null,0]
[null,null,null,null,null,null,null,null,null,0,0,0,0,null,0]
[null,null,null,null,null,null,null,null,null,0,0,0,0,null,0]
[null,null,null,null,null,null,null,null,null,0,0,0,0,null,0]
[null,null,null,null,null,null,null,null,null,0,0,0,0,null,0]
[null,null,null,null,null,null,null,null,null,0,0,0,0,null,0]
[null,null,null,null,null,null,null,null,null,0,0,0,0,null,0]
[null,null,null,null,null,null,null,null,null,0,0,0,0,null,0]
[null,null,null,null,null,null,null,null,null,0,0,0,0,null,0]
[null,null,null,null,null,null,null,null,null,0,0,0,0,null,0]
[null,null,null,null,null,null,null,null,null,0,0,0,0,null,0]
[null,null,null,null,null,null,null,null,null,0,0,0,0,null,0]
[null,null,null,null,null,null,null,null,null,0,0,{"$f":"LARGE(E101:K101,1)","v":0},{"$f":"LARGE(E101:K101,2)","v":0},null,{"$f":"L101+M101","v":0}]
[null,null,null,null,null,null,null,null,null,0,0,0,0,null,0]
[null,null,null,null,null,null,null,null,null,0,0,0,0,null,0]
[null,null,null,null,null,null,null,null,null,0,0,0,0,null,0]
[null,null,null,null,null,null,null,null,null,0,0,0,0,null,0]
[null,null,null,null,null,null,null,null,null,0,0,0,0,null,0]
[null,null,null,null,null,null,null,null,null,0,0,0,0,null,0]
[null,null,null,null,null,null,null,null,null,0,0,0,0,null,0]
[null,null,null,null,null,null,null,null,null,0,0,0,0,null,0]
[null,null,null,null,null,null,null,null,null,0,0,0,0,null,0]
[null,null,null,null,null,null,null,null,null,0,0,0,0,null,0]
[null,null,null,null,null,null,null,null,null,0,0,0,0,null,0]
[null,null,null,null,null,null,null,null,null,0,0,0,0,null,0]
[null,null,null,null,null,null,null,null,null,0,0,0,0,null,0]
[null,null,null,null,null,null,null,null,null,0,0,0,0,null,0]
[null,null,null,null,null,null,null,null,null,0,0,0,0,null,0]
[null,null,null,null,null,null,null,null,null,0,0,0,0,null,0]
[null,null,null,null,null,null,null,null,null,0,0,0,0,null,0]

{"sheet":"SSK3","index":10,"n_rows":118,"n_cols":16,"rows_kept":118,"cut":false,"hidden":false,"merged":[[0,0,0,17],[1,0,1,17],[2,11,3,11],[2,12,3,12],[2,13,3,14]]}
["            Point skema Super Standard Klasse 3"]
[]
[null,null,null,null,null,"Stævner",null,null,null,null,null,"Højeste point ","2. højeste point","2 højeste point sammenlagt",null,"Placering"]
["Navn","Traktor ","Medlemsnr",null,"Skive","Tjele","Thisted","Mors","Viborg "]
[null,null,null,null,null,null,null,null,null,0,0,{"$f":"LARGE(E5:K5,1)","v":0},{"$f":"LARGE(E5:K5,2)","v":0},null,{"$f":"L5+M5","v":0},1]
[null,null,null,null,null,null,null,null,null,0,0,0,0,null,0,2]
[null,null,null,null,null,null,null,null,null,0,0,0,0,null,0,3]
[null,null,null,null,null,null,null,null,null,0,0,0,0,null,0,4]
[null,null,null,null,null,null,null,null,null,0,0,0,0,null,0,5]
[null,null,null,null,null,null,null,null,null,0,0,0,0,null,0,6]
[null,null,null,null,null,null,null,null,null,0,0,0,0,null,0,7]
[null,null,null,null,null,null,null,null,null,0,0,0,0,null,0,8]
[null,null,null,null,null,null,null,null,null,0,0,0,0,null,0,9]
[null,null,null,null,null,null,null,null,null,0,0,0,0,null,0,10]
[null,null,null,null,null,null,null,null,null,0,0,0,0,null,0,11]
[null,null,null,null,null,null,null,null,null,0,0,0,0,null,0]
[null,null,null,null,null,null,null,null,null,0,0,0,0,null,0]
[null,null,null,null,null,null,null,null,null,0,0,0,0,null,0]
[null,null,null,null,null,null,null,null,null,0,0,0,0,null,0]
[null,null,null,null,null,null,null,null,null,0,0,0,0,null,0]
[null,null,null,null,null,null,null,null,null,0,0,0,0,null,0]
[null,null,null,null,null,null,null,null,null,0,0,0,0,null,0]
[null,null,null,null,null,null,null,null,null,0,0,0,0,null,0]
[null,null,null,null,null,null,null,null,null,0,0,0,0,null,0]
[null,null,null,null,null,null,null,null,null,0,0,0,0,null,0]
[null,null,null,null,null,null,null,null,null,0,0,0,0,null,0]
[null,null,null,null,null,null,null,null,null,0,0,0,0,null,0]
[null,null,null,null,null,null,null,null,null,0,0,0,0,null,0]
[null,null,null,null,null,null,null,null,null,0,0,0,0,null,0]
[null,null,null,null,null,null,null,null,null,0,0,0,0,null,0]
[null,null,null,null,null,null,null,null,null,0,0,0,0,null,0]
[null,null,null,null,null,null,null,null,null,0,0,0,0,null,0]
[null,null,null,null,null,null,null,null,null,0,0,0,0,null,0]
[null,null,null,null,null,null,null,null,null,0,0,0,0,null,0]
[null,null,null,null,null,null,null,null,null,0,0,0,0,null,0]
[null,null,null,null,null,null,null,null,null,0,0,0,0,null,0]
[null,null,null,null,null,null,null,null,null,0,0,{"$f":"LARGE(E37:K37,1)","v":0},{"$f":"LARGE(E37:K37,2)","v":0},null,{"$f":"L37+M37","v":0}]
[null,null,null,null,null,null,null,null,null,0,0,0,0,null,0]
[null,null,null,null,null,null,null,null,null,0,0,0,0,null,0]
[null,null,null,null,null,null,null,null,null,0,0,0,0,null,0]
[null,null,null,null,null,null,null,null,null,0,0,0,0,null,0]
[null,null,null,null,null,null,null,null,null,0,0,0,0,null,0]
[null,null,null,null,null,null,null,null,null,0,0,0,0,null,0]
[null,null,null,null,null,null,null,null,null,0,0,0,0,null,0]
[null,null,null,null,null,null,null,null,null,0,0,0,0,null,0]
[null,null,null,null,null,null,null,null,null,0,0,0,0,null,0]
[null,null,null,null,null,null,null,null,null,0,0,0,0,null,0]
[null,null,null,null,null,null,null,null,null,0,0,0,0,null,0]
[null,null,null,null,null,null,null,null,null,0,0,0,0,null,0]
[null,null,null,null,null,null,null,null,null,0,0,0,0,null,0]
[null,null,null,null,null,null,null,null,null,0,0,0,0,null,0]
[null,null,null,null,null,null,null,null,null,0,0,0,0,null,0]
[null,null,null,null,null,null,null,null,null,0,0,0,0,null,0]
[null,null,null,null,null,null,null,null,null,0,0,0,0,null,0]
[null,null,null,null,null,null,null,null,null,0,0,0,0,null,0]
[null,null,null,null,null,null,null,null,null,0,0,0,0,null,0]
[null,null,null,null,null,null,null,null,null,0,0,0,0,null,0]
[null,null,null,null,null,null,null,null,null,0,0,0,0,null,0]
[null,null,null,null,null,null,null,null,null,0,0,0,0,null,0]
[null,null,null,null,null,null,null,null,null,0,0,0,0,null,0]
[null,null,null,null,null,null,null,null,null,0,0,0,0,null,0]
[null,null,null,null,null,null,null,null,null,0,0,0,0,null,0]
[null,null,null,null,null,null,null,null,null,0,0,0,0,null,0]
[null,null,null,null,null,null,null,null,null,0,0,0,0,null,0]
[null,null,null,null,null,null,null,null,null,0,0,0,0,null,0]
[null,null,null,null,null,null,null,null,null,0,0,0,0,null,0]
[null,null,null,null,null,null,null,null,null,0,0,0,0,null,0]
[null,null,null,null,null,null,null,null,null,0,0,0,0,null,0]
[null,null,null,null,null,null,null,null,null,0,0,{"$f":"LARGE(E69:K69,1)","v":0},{"$f":"LARGE(E69:K69,2)","v":0},null,{"$f":"L69+M69","v":0}]
[null,null,null,null,null,null,null,null,null,0,0,0,0,null,0]
[null,null,null,null,null,null,null,null,null,0,0,0,0,null,0]
[null,null,null,null,null,null,null,null,null,0,0,0,0,null,0]
[null,null,null,null,null,null,null,null,null,0,0,0,0,null,0]
[null,null,null,null,null,null,null,null,null,0,0,0,0,null,0]
[null,null,null,null,null,null,null,null,null,0,0,0,0,null,0]
[null,null,null,null,null,null,null,null,null,0,0,0,0,null,0]
[null,null,null,null,null,null,null,null,null,0,0,0,0,null,0]
[null,null,null,null,null,null,null,null,null,0,0,0,0,null,0]
[null,null,null,null,null,null,null,null,null,0,0,0,0,null,0]
[null,null,null,null,null,null,null,null,null,0,0,0,0,null,0]
[null,null,null,null,null,null,null,null,null,0,0,0,0,null,0]
[null,null,null,null,null,null,null,null,null,0,0,0,0,null,0]
[null,null,null,null,null,null,null,null,null,0,0,0,0,null,0]
[null,null,null,null,null,null,null,null,null,0,0,0,0,null,0]
[null,null,null,null,null,null,null,null,null,0,0,0,0,null,0]
[null,null,null,null,null,null,null,null,null,0,0,0,0,null,0]
[null,null,null,null,null,null,null,null,null,0,0,0,0,null,0]
[null,null,null,null,null,null,null,null,null,0,0,0,0,null,0]
[null,null,null,null,null,null,null,null,null,0,0,0,0,null,0]
[null,null,null,null,null,null,null,null,null,0,0,0,0,null,0]
[null,null,null,null,null,null,null,null,null,0,0,0,0,null,0]
[null,null,null,null,null,null,null,null,null,0,0,0,0,null,0]
[null,null,null,null,null,null,null,null,null,0,0,0,0,null,0]
[null,null,null,null,null,null,null,null,null,0,0,0,0,null,0]
[null,null,null,null,null,null,null,null,null,0,0,0,0,null,0]
[null,null,null,null,null,null,null,null,null,0,0,0,0,null,0]
[null,null,null,null,null,null,null,null,null,0,0,0,0,null,0]
[null,null,null,null,null,null,null,null,null,0,0,0,0,null,0]
[null,null,null,null,null,null,null,null,null,0,0,0,0,null,0]
[null,null,null,null,null,null,null,null,null,0,0,0,0,null,0]
[null,null,null,null,null,null,null,null,null,0,0,{"$f":"LARGE(E101:K101,1)","v":0},{"$f":"LARGE(E101:K101,2)","v":0},null,{"$f":"L101+M101","v":0}]
[null,null,null,null,null,null,null,null,null,0,0,0,0,null,0]
[null,null,null,null,null,null,null,null,null,0,0,0,0,null,0]
[null,null,null,null,null,null,null,null,null,0,0,0,0,null,0]
[null,null,null,null,null,null,null,null,null,0,0,0,0,null,0]
[null,null,null,null,null,null,null,null,null,0,0,0,0,null,0]
[null,null,null,null,null,null,null,null,null,0,0,0,0,null,0]
[null,null,null,null,null,null,null,null,null,0,0,0,0,null,0]
[null,null,null,null,null,null,null,null,null,0,0,0,0,null,0]
[null,null,null,null,null,null,null,null,null,0,0,0,0,null,0]
[null,null,null,null,null,null,null,null,null,0,0,0,0,null,0]
[null,null,null,null,null,null,null,null,null,0,0,0,0,null,0]
[null,null,null,null,null,null,null,null,null,0,0,0,0,null,0]
[null,null,null,null,null,null,null,null,null,0,0,0,0,null,0]
[null,null,null,null,null,null,null,null,null,0,0,0,0,null,0]
[null,null,null,null,null,null,null,null,null,0,0,0,0,null,0]
[null,null,null,null,null,null,null,null,null,0,0,0,0,null,0]
[null,null,null,null,null,null,null,null,null,0,0,0,0,null,0]

{"sheet":"SSK4","index":11,"n_rows":118,"n_cols":16,"rows_kept":118,"cut":false,"hidden":false,"merged":[[0,0,0,17],[1,0,1,17],[2,11,3,11],[2,12,3,12],[2,13,3,14]]}
["            Point skema Super Standard Klasse 4"]
[]
[null,null,null,null,null,"Stævner",null,null,null,null,null,"Højeste point ","2. højeste point","2 højeste point sammenlagt",null,"Placering"]
["Navn","Traktor ","Medlemsnr",null,"Skive","Tjele","Thisted","Mors","Viborg "]
[null,null,null,null,null,null,null,null,null,0,0,{"$f":"LARGE(E5:K5,1)","v":0},{"$f":"LARGE(E5:K5,2)","v":0},null,{"$f":"L5+M5","v":0},1]
[null,null,null,null,null,null,null,null,null,0,0,0,0,null,0,2]
[null,null,null,null,null,null,null,null,null,0,0,0,0,null,0,3]
[null,null,null,null,null,null,null,null,null,0,0,0,0,null,0,4]
[null,null,null,null,null,null,null,null,null,0,0,0,0,null,0,5]
[null,null,null,null,null,null,null,null,null,0,0,0,0,null,0,6]
[null,null,null,null,null,null,null,null,null,0,0,0,0,null,0,7]
[null,null,null,null,null,null,null,null,null,0,0,0,0,null,0,8]
[null,null,null,null,null,null,null,null,null,0,0,0,0,null,0,9]
[null,null,null,null,null,null,null,null,null,0,0,0,0,null,0,10]
[null,null,null,null,null,null,null,null,null,0,0,0,0,null,0,11]
[null,null,null,null,null,null,null,null,null,0,0,0,0,null,0]
[null,null,null,null,null,null,null,null,null,0,0,0,0,null,0]
[null,null,null,null,null,null,null,null,null,0,0,0,0,null,0]
[null,null,null,null,null,null,null,null,null,0,0,0,0,null,0]
[null,null,null,null,null,null,null,null,null,0,0,0,0,null,0]
[null,null,null,null,null,null,null,null,null,0,0,0,0,null,0]
[null,null,null,null,null,null,null,null,null,0,0,0,0,null,0]
[null,null,null,null,null,null,null,null,null,0,0,0,0,null,0]
[null,null,null,null,null,null,null,null,null,0,0,0,0,null,0]
[null,null,null,null,null,null,null,null,null,0,0,0,0,null,0]
[null,null,null,null,null,null,null,null,null,0,0,0,0,null,0]
[null,null,null,null,null,null,null,null,null,0,0,0,0,null,0]
[null,null,null,null,null,null,null,null,null,0,0,0,0,null,0]
[null,null,null,null,null,null,null,null,null,0,0,0,0,null,0]
[null,null,null,null,null,null,null,null,null,0,0,0,0,null,0]
[null,null,null,null,null,null,null,null,null,0,0,0,0,null,0]
[null,null,null,null,null,null,null,null,null,0,0,0,0,null,0]
[null,null,null,null,null,null,null,null,null,0,0,0,0,null,0]
[null,null,null,null,null,null,null,null,null,0,0,0,0,null,0]
[null,null,null,null,null,null,null,null,null,0,0,0,0,null,0]
[null,null,null,null,null,null,null,null,null,0,0,0,0,null,0]
[null,null,null,null,null,null,null,null,null,0,0,{"$f":"LARGE(E37:K37,1)","v":0},{"$f":"LARGE(E37:K37,2)","v":0},null,{"$f":"L37+M37","v":0}]
[null,null,null,null,null,null,null,null,null,0,0,0,0,null,0]
[null,null,null,null,null,null,null,null,null,0,0,0,0,null,0]
[null,null,null,null,null,null,null,null,null,0,0,0,0,null,0]
[null,null,null,null,null,null,null,null,null,0,0,0,0,null,0]
[null,null,null,null,null,null,null,null,null,0,0,0,0,null,0]
[null,null,null,null,null,null,null,null,null,0,0,0,0,null,0]
[null,null,null,null,null,null,null,null,null,0,0,0,0,null,0]
[null,null,null,null,null,null,null,null,null,0,0,0,0,null,0]
[null,null,null,null,null,null,null,null,null,0,0,0,0,null,0]
[null,null,null,null,null,null,null,null,null,0,0,0,0,null,0]
[null,null,null,null,null,null,null,null,null,0,0,0,0,null,0]
[null,null,null,null,null,null,null,null,null,0,0,0,0,null,0]
[null,null,null,null,null,null,null,null,null,0,0,0,0,null,0]
[null,null,null,null,null,null,null,null,null,0,0,0,0,null,0]
[null,null,null,null,null,null,null,null,null,0,0,0,0,null,0]
[null,null,null,null,null,null,null,null,null,0,0,0,0,null,0]
[null,null,null,null,null,null,null,null,null,0,0,0,0,null,0]
[null,null,null,null,null,null,null,null,null,0,0,0,0,null,0]
[null,null,null,null,null,null,null,null,null,0,0,0,0,null,0]
[null,null,null,null,null,null,null,null,null,0,0,0,0,null,0]
[null,null,null,null,null,null,null,null,null,0,0,0,0,null,0]
[null,null,null,null,null,null,null,null,null,0,0,0,0,null,0]
[null,null,null,null,null,null,null,null,null,0,0,0,0,null,0]
[null,null,null,null,null,null,null,null,null,0,0,0,0,null,0]
[null,null,null,null,null,null,null,null,null,0,0,0,0,null,0]
[null,null,null,null,null,null,null,null,null,0,0,0,0,null,0]
[null,null,null,null,null,null,null,null,null,0,0,0,0,null,0]
[null,null,null,null,null,null,null,null,null,0,0,0,0,null,0]
[null,null,null,null,null,null,null,null,null,0,0,0,0,null,0]
[null,null,null,null,null,null,null,null,null,0,0,0,0,null,0]
[null,null,null,null,null,null,null,null,null,0,0,0,0,null,0]
[null,null,null,null,null,null,null,null,null,0,0,{"$f":"LARGE(E69:K69,1)","v":0},{"$f":"LARGE(E69:K69,2)","v":0},null,{"$f":"L69+M69","v":0}]
[null,null,null,null,null,null,null,null,null,0,0,0,0,null,0]
[null,null,null,null,null,null,null,null,null,0,0,0,0,null,0]
[null,null,null,null,null,null,null,null,null,0,0,0,0,null,0]
[null,null,null,null,null,null,null,null,null,0,0,0,0,null,0]
[null,null,null,null,null,null,null,null,null,0,0,0,0,null,0]
[null,null,null,null,null,null,null,null,null,0,0,0,0,null,0]
[null,null,null,null,null,null,null,null,null,0,0,0,0,null,0]
[null,null,null,null,null,null,null,null,null,0,0,0,0,null,0]
[null,null,null,null,null,null,null,null,null,0,0,0,0,null,0]
[null,null,null,null,null,null,null,null,null,0,0,0,0,null,0]
[null,null,null,null,null,null,null,null,null,0,0,0,0,null,0]
[null,null,null,null,null,null,null,null,null,0,0,0,0,null,0]
[null,null,null,null,null,null,null,null,null,0,0,0,0,null,0]
[null,null,null,null,null,null,null,null,null,0,0,0,0,null,0]
[null,null,null,null,null,null,null,null,null,0,0,0,0,null,0]
[null,null,null,null,null,null,null,null,null,0,0,0,0,null,0]
[null,null,null,null,null,null,null,null,null,0,0,0,0,null,0]
[null,null,null,null,null,null,null,null,null,0,0,0,0,null,0]
[null,null,null,null,null,null,null,null,null,0,0,0,0,null,0]
[null,null,null,null,null,null,null,null,null,0,0,0,0,null,0]
[null,null,null,null,null,null,null,null,null,0,0,0,0,null,0]
[null,null,null,null,null,null,null,null,null,0,0,0,0,null,0]
[null,null,null,null,null,null,null,null,null,0,0,0,0,null,0]
[null,null,null,null,null,null,null,null,null,0,0,0,0,null,0]
[null,null,null,null,null,null,null,null,null,0,0,0,0,null,0]
[null,null,null,null,null,null,null,null,null,0,0,0,0,null,0]
[null,null,null,null,null,null,null,null,null,0,0,0,0,null,0]
[null,null,null,null,null,null,null,null,null,0,0,0,0,null,0]
[null,null,null,null,null,null,null,null,null,0,0,0,0,null,0]
[null,null,null,null,null,null,null,null,null,0,0,0,0,null,0]
[null,null,null,null,null,null,null,null,null,0,0,0,0,null,0]
[null,null,null,null,null,null,null,null,null,0,0,{"$f":"LARGE(E101:K101,1)","v":0},{"$f":"LARGE(E101:K101,2)","v":0},null,{"$f":"L101+M101","v":0}]
[null,null,null,null,null,null,null,null,null,0,0,0,0,null,0]
[null,null,null,null,null,null,null,null,null,0,0,0,0,null,0]
[null,null,null,null,null,null,null,null,null,0,0,0,0,null,0]
[null,null,null,null,null,null,null,null,null,0,0,0,0,null,0]
[null,null,null,null,null,null,null,null,null,0,0,0,0,null,0]
[null,null,null,null,null,null,null,null,null,0,0,0,0,null,0]
[null,null,null,null,null,null,null,null,null,0,0,0,0,null,0]
[null,null,null,null,null,null,null,null,null,0,0,0,0,null,0]
[null,null,null,null,null,null,null,null,null,0,0,0,0,null,0]
[null,null,null,null,null,null,null,null,null,0,0,0,0,null,0]
[null,null,null,null,null,null,null,null,null,0,0,0,0,null,0]
[null,null,null,null,null,null,null,null,null,0,0,0,0,null,0]
[null,null,null,null,null,null,null,null,null,0,0,0,0,null,0]
[null,null,null,null,null,null,null,null,null,0,0,0,0,null,0]
[null,null,null,null,null,null,null,null,null,0,0,0,0,null,0]
[null,null,null,null,null,null,null,null,null,0,0,0,0,null,0]
[null,null,null,null,null,null,null,null,null,0,0,0,0,null,0]

{"sheet":"SSK5","index":12,"n_rows":118,"n_cols":16,"rows_kept":118,"cut":false,"hidden":false,"merged":[[0,0,0,17],[1,0,1,17],[2,11,3,11],[2,12,3,12],[2,13,3,14]]}
["            Point skema Super Standard Klasse 5"]
[]
[null,null,null,null,null,"Stævner",null,null,null,null,null,"Højeste point ","2. højeste point","2 højeste point sammenlagt",null,"Placering"]
["Navn","Traktor ","Medlemsnr",null,"Skive","Tjele","Thisted","Mors","Viborg "]
[null,null,null,null,null,null,null,null,null,0,0,{"$f":"LARGE(E5:K5,1)","v":0},{"$f":"LARGE(E5:K5,2)","v":0},null,{"$f":"L5+M5","v":0},1]
[null,null,null,null,null,null,null,null,null,0,0,0,0,null,0,2]
[null,null,null,null,null,null,null,null,null,0,0,0,0,null,0,3]
[null,null,null,null,null,null,null,null,null,0,0,0,0,null,0,4]
[null,null,null,null,null,null,null,null,null,0,0,0,0,null,0,5]
[null,null,null,null,null,null,null,null,null,0,0,0,0,null,0,6]
[null,null,null,null,null,null,null,null,null,0,0,0,0,null,0,7]
[null,null,null,null,null,null,null,null,null,0,0,0,0,null,0,8]
[null,null,null,null,null,null,null,null,null,0,0,0,0,null,0,9]
[null,null,null,null,null,null,null,null,null,0,0,0,0,null,0,10]
[null,null,null,null,null,null,null,null,null,0,0,0,0,null,0,11]
[null,null,null,null,null,null,null,null,null,0,0,0,0,null,0]
[null,null,null,null,null,null,null,null,null,0,0,0,0,null,0]
[null,null,null,null,null,null,null,null,null,0,0,0,0,null,0]
[null,null,null,null,null,null,null,null,null,0,0,0,0,null,0]
[null,null,null,null,null,null,null,null,null,0,0,0,0,null,0]
[null,null,null,null,null,null,null,null,null,0,0,0,0,null,0]
[null,null,null,null,null,null,null,null,null,0,0,0,0,null,0]
[null,null,null,null,null,null,null,null,null,0,0,0,0,null,0]
[null,null,null,null,null,null,null,null,null,0,0,0,0,null,0]
[null,null,null,null,null,null,null,null,null,0,0,0,0,null,0]
[null,null,null,null,null,null,null,null,null,0,0,0,0,null,0]
[null,null,null,null,null,null,null,null,null,0,0,0,0,null,0]
[null,null,null,null,null,null,null,null,null,0,0,0,0,null,0]
[null,null,null,null,null,null,null,null,null,0,0,0,0,null,0]
[null,null,null,null,null,null,null,null,null,0,0,0,0,null,0]
[null,null,null,null,null,null,null,null,null,0,0,0,0,null,0]
[null,null,null,null,null,null,null,null,null,0,0,0,0,null,0]
[null,null,null,null,null,null,null,null,null,0,0,0,0,null,0]
[null,null,null,null,null,null,null,null,null,0,0,0,0,null,0]
[null,null,null,null,null,null,null,null,null,0,0,0,0,null,0]
[null,null,null,null,null,null,null,null,null,0,0,0,0,null,0]
[null,null,null,null,null,null,null,null,null,0,0,{"$f":"LARGE(E37:K37,1)","v":0},{"$f":"LARGE(E37:K37,2)","v":0},null,{"$f":"L37+M37","v":0}]
[null,null,null,null,null,null,null,null,null,0,0,0,0,null,0]
[null,null,null,null,null,null,null,null,null,0,0,0,0,null,0]
[null,null,null,null,null,null,null,null,null,0,0,0,0,null,0]
[null,null,null,null,null,null,null,null,null,0,0,0,0,null,0]
[null,null,null,null,null,null,null,null,null,0,0,0,0,null,0]
[null,null,null,null,null,null,null,null,null,0,0,0,0,null,0]
[null,null,null,null,null,null,null,null,null,0,0,0,0,null,0]
[null,null,null,null,null,null,null,null,null,0,0,0,0,null,0]
[null,null,null,null,null,null,null,null,null,0,0,0,0,null,0]
[null,null,null,null,null,null,null,null,null,0,0,0,0,null,0]
[null,null,null,null,null,null,null,null,null,0,0,0,0,null,0]
[null,null,null,null,null,null,null,null,null,0,0,0,0,null,0]
[null,null,null,null,null,null,null,null,null,0,0,0,0,null,0]
[null,null,null,null,null,null,null,null,null,0,0,0,0,null,0]
[null,null,null,null,null,null,null,null,null,0,0,0,0,null,0]
[null,null,null,null,null,null,null,null,null,0,0,0,0,null,0]
[null,null,null,null,null,null,null,null,null,0,0,0,0,null,0]
[null,null,null,null,null,null,null,null,null,0,0,0,0,null,0]
[null,null,null,null,null,null,null,null,null,0,0,0,0,null,0]
[null,null,null,null,null,null,null,null,null,0,0,0,0,null,0]
[null,null,null,null,null,null,null,null,null,0,0,0,0,null,0]
[null,null,null,null,null,null,null,null,null,0,0,0,0,null,0]
[null,null,null,null,null,null,null,null,null,0,0,0,0,null,0]
[null,null,null,null,null,null,null,null,null,0,0,0,0,null,0]
[null,null,null,null,null,null,null,null,null,0,0,0,0,null,0]
[null,null,null,null,null,null,null,null,null,0,0,0,0,null,0]
[null,null,null,null,null,null,null,null,null,0,0,0,0,null,0]
[null,null,null,null,null,null,null,null,null,0,0,0,0,null,0]
[null,null,null,null,null,null,null,null,null,0,0,0,0,null,0]
[null,null,null,null,null,null,null,null,null,0,0,0,0,null,0]
[null,null,null,null,null,null,null,null,null,0,0,0,0,null,0]
[null,null,null,null,null,null,null,null,null,0,0,{"$f":"LARGE(E69:K69,1)","v":0},{"$f":"LARGE(E69:K69,2)","v":0},null,{"$f":"L69+M69","v":0}]
[null,null,null,null,null,null,null,null,null,0,0,0,0,null,0]
[null,null,null,null,null,null,null,null,null,0,0,0,0,null,0]
[null,null,null,null,null,null,null,null,null,0,0,0,0,null,0]
[null,null,null,null,null,null,null,null,null,0,0,0,0,null,0]
[null,null,null,null,null,null,null,null,null,0,0,0,0,null,0]
[null,null,null,null,null,null,null,null,null,0,0,0,0,null,0]
[null,null,null,null,null,null,null,null,null,0,0,0,0,null,0]
[null,null,null,null,null,null,null,null,null,0,0,0,0,null,0]
[null,null,null,null,null,null,null,null,null,0,0,0,0,null,0]
[null,null,null,null,null,null,null,null,null,0,0,0,0,null,0]
[null,null,null,null,null,null,null,null,null,0,0,0,0,null,0]
[null,null,null,null,null,null,null,null,null,0,0,0,0,null,0]
[null,null,null,null,null,null,null,null,null,0,0,0,0,null,0]
[null,null,null,null,null,null,null,null,null,0,0,0,0,null,0]
[null,null,null,null,null,null,null,null,null,0,0,0,0,null,0]
[null,null,null,null,null,null,null,null,null,0,0,0,0,null,0]
[null,null,null,null,null,null,null,null,null,0,0,0,0,null,0]
[null,null,null,null,null,null,null,null,null,0,0,0,0,null,0]
[null,null,null,null,null,null,null,null,null,0,0,0,0,null,0]
[null,null,null,null,null,null,null,null,null,0,0,0,0,null,0]
[null,null,null,null,null,null,null,null,null,0,0,0,0,null,0]
[null,null,null,null,null,null,null,null,null,0,0,0,0,null,0]
[null,null,null,null,null,null,null,null,null,0,0,0,0,null,0]
[null,null,null,null,null,null,null,null,null,0,0,0,0,null,0]
[null,null,null,null,null,null,null,null,null,0,0,0,0,null,0]
[null,null,null,null,null,null,null,null,null,0,0,0,0,null,0]
[null,null,null,null,null,null,null,null,null,0,0,0,0,null,0]
[null,null,null,null,null,null,null,null,null,0,0,0,0,null,0]
[null,null,null,null,null,null,null,null,null,0,0,0,0,null,0]
[null,null,null,null,null,null,null,null,null,0,0,0,0,null,0]
[null,null,null,null,null,null,null,null,null,0,0,0,0,null,0]
[null,null,null,null,null,null,null,null,null,0,0,{"$f":"LARGE(E101:K101,1)","v":0},{"$f":"LARGE(E101:K101,2)","v":0},null,{"$f":"L101+M101","v":0}]
[null,null,null,null,null,null,null,null,null,0,0,0,0,null,0]
[null,null,null,null,null,null,null,null,null,0,0,0,0,null,0]
[null,null,null,null,null,null,null,null,null,0,0,0,0,null,0]
[null,null,null,null,null,null,null,null,null,0,0,0,0,null,0]
[null,null,null,null,null,null,null,null,null,0,0,0,0,null,0]
[null,null,null,null,null,null,null,null,null,0,0,0,0,null,0]
[null,null,null,null,null,null,null,null,null,0,0,0,0,null,0]
[null,null,null,null,null,null,null,null,null,0,0,0,0,null,0]
[null,null,null,null,null,null,null,null,null,0,0,0,0,null,0]
[null,null,null,null,null,null,null,null,null,0,0,0,0,null,0]
[null,null,null,null,null,null,null,null,null,0,0,0,0,null,0]
[null,null,null,null,null,null,null,null,null,0,0,0,0,null,0]
[null,null,null,null,null,null,null,null,null,0,0,0,0,null,0]
[null,null,null,null,null,null,null,null,null,0,0,0,0,null,0]
[null,null,null,null,null,null,null,null,null,0,0,0,0,null,0]
[null,null,null,null,null,null,null,null,null,0,0,0,0,null,0]
[null,null,null,null,null,null,null,null,null,0,0,0,0,null,0]

{"sheet":"SSK6","index":13,"n_rows":118,"n_cols":16,"rows_kept":118,"cut":false,"hidden":false,"merged":[[0,0,0,17],[1,0,1,17],[2,11,3,11],[2,12,3,12],[2,13,3,14]]}
["            Point skema Super Standard Klasse 6"]
[]
[null,null,null,null,null,"Stævner",null,null,null,null,null,"Højeste point ","2. højeste point","2 højeste point sammenlagt",null,"Placering"]
["Navn","Traktor ","Medlemsnr",null,"Skive","Tjele","Thisted","Mors","Viborg "]
[null,null,null,null,null,null,null,null,null,0,0,{"$f":"LARGE(E5:K5,1)","v":0},{"$f":"LARGE(E5:K5,2)","v":0},null,{"$f":"L5+M5","v":0},1]
[null,null,null,null,null,null,null,null,null,0,0,0,0,null,0,2]
[null,null,null,null,null,null,null,null,null,0,0,0,0,null,0,3]
[null,null,null,null,null,null,null,null,null,0,0,0,0,null,0,4]
[null,null,null,null,null,null,null,null,null,0,0,0,0,null,0,5]
[null,null,null,null,null,null,null,null,null,0,0,0,0,null,0,6]
[null,null,null,null,null,null,null,null,null,0,0,0,0,null,0,7]
[null,null,null,null,null,null,null,null,null,0,0,0,0,null,0,8]
[null,null,null,null,null,null,null,null,null,0,0,0,0,null,0,9]
[null,null,null,null,null,null,null,null,null,0,0,0,0,null,0,10]
[null,null,null,null,null,null,null,null,null,0,0,0,0,null,0,11]
[null,null,null,null,null,null,null,null,null,0,0,0,0,null,0]
[null,null,null,null,null,null,null,null,null,0,0,0,0,null,0]
[null,null,null,null,null,null,null,null,null,0,0,0,0,null,0]
[null,null,null,null,null,null,null,null,null,0,0,0,0,null,0]
[null,null,null,null,null,null,null,null,null,0,0,0,0,null,0]
[null,null,null,null,null,null,null,null,null,0,0,0,0,null,0]
[null,null,null,null,null,null,null,null,null,0,0,0,0,null,0]
[null,null,null,null,null,null,null,null,null,0,0,0,0,null,0]
[null,null,null,null,null,null,null,null,null,0,0,0,0,null,0]
[null,null,null,null,null,null,null,null,null,0,0,0,0,null,0]
[null,null,null,null,null,null,null,null,null,0,0,0,0,null,0]
[null,null,null,null,null,null,null,null,null,0,0,0,0,null,0]
[null,null,null,null,null,null,null,null,null,0,0,0,0,null,0]
[null,null,null,null,null,null,null,null,null,0,0,0,0,null,0]
[null,null,null,null,null,null,null,null,null,0,0,0,0,null,0]
[null,null,null,null,null,null,null,null,null,0,0,0,0,null,0]
[null,null,null,null,null,null,null,null,null,0,0,0,0,null,0]
[null,null,null,null,null,null,null,null,null,0,0,0,0,null,0]
[null,null,null,null,null,null,null,null,null,0,0,0,0,null,0]
[null,null,null,null,null,null,null,null,null,0,0,0,0,null,0]
[null,null,null,null,null,null,null,null,null,0,0,0,0,null,0]
[null,null,null,null,null,null,null,null,null,0,0,{"$f":"LARGE(E37:K37,1)","v":0},{"$f":"LARGE(E37:K37,2)","v":0},null,{"$f":"L37+M37","v":0}]
[null,null,null,null,null,null,null,null,null,0,0,0,0,null,0]
[null,null,null,null,null,null,null,null,null,0,0,0,0,null,0]
[null,null,null,null,null,null,null,null,null,0,0,0,0,null,0]
[null,null,null,null,null,null,null,null,null,0,0,0,0,null,0]
[null,null,null,null,null,null,null,null,null,0,0,0,0,null,0]
[null,null,null,null,null,null,null,null,null,0,0,0,0,null,0]
[null,null,null,null,null,null,null,null,null,0,0,0,0,null,0]
[null,null,null,null,null,null,null,null,null,0,0,0,0,null,0]
[null,null,null,null,null,null,null,null,null,0,0,0,0,null,0]
[null,null,null,null,null,null,null,null,null,0,0,0,0,null,0]
[null,null,null,null,null,null,null,null,null,0,0,0,0,null,0]
[null,null,null,null,null,null,null,null,null,0,0,0,0,null,0]
[null,null,null,null,null,null,null,null,null,0,0,0,0,null,0]
[null,null,null,null,null,null,null,null,null,0,0,0,0,null,0]
[null,null,null,null,null,null,null,null,null,0,0,0,0,null,0]
[null,null,null,null,null,null,null,null,null,0,0,0,0,null,0]
[null,null,null,null,null,null,null,null,null,0,0,0,0,null,0]
[null,null,null,null,null,null,null,null,null,0,0,0,0,null,0]
[null,null,null,null,null,null,null,null,null,0,0,0,0,null,0]
[null,null,null,null,null,null,null,null,null,0,0,0,0,null,0]
[null,null,null,null,null,null,null,null,null,0,0,0,0,null,0]
[null,null,null,null,null,null,null,null,null,0,0,0,0,null,0]
[null,null,null,null,null,null,null,null,null,0,0,0,0,null,0]
[null,null,null,null,null,null,null,null,null,0,0,0,0,null,0]
[null,null,null,null,null,null,null,null,null,0,0,0,0,null,0]
[null,null,null,null,null,null,null,null,null,0,0,0,0,null,0]
[null,null,null,null,null,null,null,null,null,0,0,0,0,null,0]
[null,null,null,null,null,null,null,null,null,0,0,0,0,null,0]
[null,null,null,null,null,null,null,null,null,0,0,0,0,null,0]
[null,null,null,null,null,null,null,null,null,0,0,0,0,null,0]
[null,null,null,null,null,null,null,null,null,0,0,0,0,null,0]
[null,null,null,null,null,null,null,null,null,0,0,{"$f":"LARGE(E69:K69,1)","v":0},{"$f":"LARGE(E69:K69,2)","v":0},null,{"$f":"L69+M69","v":0}]
[null,null,null,null,null,null,null,null,null,0,0,0,0,null,0]
[null,null,null,null,null,null,null,null,null,0,0,0,0,null,0]
[null,null,null,null,null,null,null,null,null,0,0,0,0,null,0]
[null,null,null,null,null,null,null,null,null,0,0,0,0,null,0]
[null,null,null,null,null,null,null,null,null,0,0,0,0,null,0]
[null,null,null,null,null,null,null,null,null,0,0,0,0,null,0]
[null,null,null,null,null,null,null,null,null,0,0,0,0,null,0]
[null,null,null,null,null,null,null,null,null,0,0,0,0,null,0]
[null,null,null,null,null,null,null,null,null,0,0,0,0,null,0]
[null,null,null,null,null,null,null,null,null,0,0,0,0,null,0]
[null,null,null,null,null,null,null,null,null,0,0,0,0,null,0]
[null,null,null,null,null,null,null,null,null,0,0,0,0,null,0]
[null,null,null,null,null,null,null,null,null,0,0,0,0,null,0]
[null,null,null,null,null,null,null,null,null,0,0,0,0,null,0]
[null,null,null,null,null,null,null,null,null,0,0,0,0,null,0]
[null,null,null,null,null,null,null,null,null,0,0,0,0,null,0]
[null,null,null,null,null,null,null,null,null,0,0,0,0,null,0]
[null,null,null,null,null,null,null,null,null,0,0,0,0,null,0]
[null,null,null,null,null,null,null,null,null,0,0,0,0,null,0]
[null,null,null,null,null,null,null,null,null,0,0,0,0,null,0]
[null,null,null,null,null,null,null,null,null,0,0,0,0,null,0]
[null,null,null,null,null,null,null,null,null,0,0,0,0,null,0]
[null,null,null,null,null,null,null,null,null,0,0,0,0,null,0]
[null,null,null,null,null,null,null,null,null,0,0,0,0,null,0]
[null,null,null,null,null,null,null,null,null,0,0,0,0,null,0]
[null,null,null,null,null,null,null,null,null,0,0,0,0,null,0]
[null,null,null,null,null,null,null,null,null,0,0,0,0,null,0]
[null,null,null,null,null,null,null,null,null,0,0,0,0,null,0]
[null,null,null,null,null,null,null,null,null,0,0,0,0,null,0]
[null,null,null,null,null,null,null,null,null,0,0,0,0,null,0]
[null,null,null,null,null,null,null,null,null,0,0,0,0,null,0]
[null,null,null,null,null,null,null,null,null,0,0,{"$f":"LARGE(E101:K101,1)","v":0},{"$f":"LARGE(E101:K101,2)","v":0},null,{"$f":"L101+M101","v":0}]
[null,null,null,null,null,null,null,null,null,0,0,0,0,null,0]
[null,null,null,null,null,null,null,null,null,0,0,0,0,null,0]
[null,null,null,null,null,null,null,null,null,0,0,0,0,null,0]
[null,null,null,null,null,null,null,null,null,0,0,0,0,null,0]
[null,null,null,null,null,null,null,null,null,0,0,0,0,null,0]
[null,null,null,null,null,null,null,null,null,0,0,0,0,null,0]
[null,null,null,null,null,null,null,null,null,0,0,0,0,null,0]
[null,null,null,null,null,null,null,null,null,0,0,0,0,null,0]
[null,null,null,null,null,null,null,null,null,0,0,0,0,null,0]
[null,null,null,null,null,null,null,null,null,0,0,0,0,null,0]
[null,null,null,null,null,null,null,null,null,0,0,0,0,null,0]
[null,null,null,null,null,null,null,null,null,0,0,0,0,null,0]
[null,null,null,null,null,null,null,null,null,0,0,0,0,null,0]
[null,null,null,null,null,null,null,null,null,0,0,0,0,null,0]
[null,null,null,null,null,null,null,null,null,0,0,0,0,null,0]
[null,null,null,null,null,null,null,null,null,0,0,0,0,null,0]
[null,null,null,null,null,null,null,null,null,0,0,0,0,null,0]

{"sheet":"SSK7","index":14,"n_rows":118,"n_cols":16,"rows_kept":118,"cut":false,"hidden":false,"merged":[[0,0,0,17],[1,0,1,17],[2,11,3,11],[2,12,3,12],[2,13,3,14]]}
["            Point skema Super Standard Klasse 7"]
[]
[null,null,null,null,null,"Stævner",null,null,null,null,null,"Højeste point ","2. højeste point","2 højeste point sammenlagt",null,"Placering"]
["Navn","Traktor ","Medlemsnr",null,"Skive","Tjele","Thisted","Mors","Viborg "]
[null,null,null,null,null,null,null,null,null,0,0,{"$f":"LARGE(E5:K5,1)","v":0},{"$f":"LARGE(E5:K5,2)","v":0},null,{"$f":"L5+M5","v":0},1]
[null,null,null,null,null,null,null,null,null,0,0,0,0,null,0,2]
[null,null,null,null,null,null,null,null,null,0,0,0,0,null,0,3]
[null,null,null,null,null,null,null,null,null,0,0,0,0,null,0,4]
[null,null,null,null,null,null,null,null,null,0,0,0,0,null,0,5]
[null,null,null,null,null,null,null,null,null,0,0,0,0,null,0,6]
[null,null,null,null,null,null,null,null,null,0,0,0,0,null,0,7]
[null,null,null,null,null,null,null,null,null,0,0,0,0,null,0,8]
[null,null,null,null,null,null,null,null,null,0,0,0,0,null,0,9]
[null,null,null,null,null,null,null,null,null,0,0,0,0,null,0,10]
[null,null,null,null,null,null,null,null,null,0,0,0,0,null,0,11]
[null,null,null,null,null,null,null,null,null,0,0,0,0,null,0]
[null,null,null,null,null,null,null,null,null,0,0,0,0,null,0]
[null,null,null,null,null,null,null,null,null,0,0,0,0,null,0]
[null,null,null,null,null,null,null,null,null,0,0,0,0,null,0]
[null,null,null,null,null,null,null,null,null,0,0,0,0,null,0]
[null,null,null,null,null,null,null,null,null,0,0,0,0,null,0]
[null,null,null,null,null,null,null,null,null,0,0,0,0,null,0]
[null,null,null,null,null,null,null,null,null,0,0,0,0,null,0]
[null,null,null,null,null,null,null,null,null,0,0,0,0,null,0]
[null,null,null,null,null,null,null,null,null,0,0,0,0,null,0]
[null,null,null,null,null,null,null,null,null,0,0,0,0,null,0]
[null,null,null,null,null,null,null,null,null,0,0,0,0,null,0]
[null,null,null,null,null,null,null,null,null,0,0,0,0,null,0]
[null,null,null,null,null,null,null,null,null,0,0,0,0,null,0]
[null,null,null,null,null,null,null,null,null,0,0,0,0,null,0]
[null,null,null,null,null,null,null,null,null,0,0,0,0,null,0]
[null,null,null,null,null,null,null,null,null,0,0,0,0,null,0]
[null,null,null,null,null,null,null,null,null,0,0,0,0,null,0]
[null,null,null,null,null,null,null,null,null,0,0,0,0,null,0]
[null,null,null,null,null,null,null,null,null,0,0,0,0,null,0]
[null,null,null,null,null,null,null,null,null,0,0,0,0,null,0]
[null,null,null,null,null,null,null,null,null,0,0,{"$f":"LARGE(E37:K37,1)","v":0},{"$f":"LARGE(E37:K37,2)","v":0},null,{"$f":"L37+M37","v":0}]
[null,null,null,null,null,null,null,null,null,0,0,0,0,null,0]
[null,null,null,null,null,null,null,null,null,0,0,0,0,null,0]
[null,null,null,null,null,null,null,null,null,0,0,0,0,null,0]
[null,null,null,null,null,null,null,null,null,0,0,0,0,null,0]
[null,null,null,null,null,null,null,null,null,0,0,0,0,null,0]
[null,null,null,null,null,null,null,null,null,0,0,0,0,null,0]
[null,null,null,null,null,null,null,null,null,0,0,0,0,null,0]
[null,null,null,null,null,null,null,null,null,0,0,0,0,null,0]
[null,null,null,null,null,null,null,null,null,0,0,0,0,null,0]
[null,null,null,null,null,null,null,null,null,0,0,0,0,null,0]
[null,null,null,null,null,null,null,null,null,0,0,0,0,null,0]
[null,null,null,null,null,null,null,null,null,0,0,0,0,null,0]
[null,null,null,null,null,null,null,null,null,0,0,0,0,null,0]
[null,null,null,null,null,null,null,null,null,0,0,0,0,null,0]
[null,null,null,null,null,null,null,null,null,0,0,0,0,null,0]
[null,null,null,null,null,null,null,null,null,0,0,0,0,null,0]
[null,null,null,null,null,null,null,null,null,0,0,0,0,null,0]
[null,null,null,null,null,null,null,null,null,0,0,0,0,null,0]
[null,null,null,null,null,null,null,null,null,0,0,0,0,null,0]
[null,null,null,null,null,null,null,null,null,0,0,0,0,null,0]
[null,null,null,null,null,null,null,null,null,0,0,0,0,null,0]
[null,null,null,null,null,null,null,null,null,0,0,0,0,null,0]
[null,null,null,null,null,null,null,null,null,0,0,0,0,null,0]
[null,null,null,null,null,null,null,null,null,0,0,0,0,null,0]
[null,null,null,null,null,null,null,null,null,0,0,0,0,null,0]
[null,null,null,null,null,null,null,null,null,0,0,0,0,null,0]
[null,null,null,null,null,null,null,null,null,0,0,0,0,null,0]
[null,null,null,null,null,null,null,null,null,0,0,0,0,null,0]
[null,null,null,null,null,null,null,null,null,0,0,0,0,null,0]
[null,null,null,null,null,null,null,null,null,0,0,0,0,null,0]
[null,null,null,null,null,null,null,null,null,0,0,0,0,null,0]
[null,null,null,null,null,null,null,null,null,0,0,{"$f":"LARGE(E69:K69,1)","v":0},{"$f":"LARGE(E69:K69,2)","v":0},null,{"$f":"L69+M69","v":0}]
[null,null,null,null,null,null,null,null,null,0,0,0,0,null,0]
[null,null,null,null,null,null,null,null,null,0,0,0,0,null,0]
[null,null,null,null,null,null,null,null,null,0,0,0,0,null,0]
[null,null,null,null,null,null,null,null,null,0,0,0,0,null,0]
[null,null,null,null,null,null,null,null,null,0,0,0,0,null,0]
[null,null,null,null,null,null,null,null,null,0,0,0,0,null,0]
[null,null,null,null,null,null,null,null,null,0,0,0,0,null,0]
[null,null,null,null,null,null,null,null,null,0,0,0,0,null,0]
[null,null,null,null,null,null,null,null,null,0,0,0,0,null,0]
[null,null,null,null,null,null,null,null,null,0,0,0,0,null,0]
[null,null,null,null,null,null,null,null,null,0,0,0,0,null,0]
[null,null,null,null,null,null,null,null,null,0,0,0,0,null,0]
[null,null,null,null,null,null,null,null,null,0,0,0,0,null,0]
[null,null,null,null,null,null,null,null,null,0,0,0,0,null,0]
[null,null,null,null,null,null,null,null,null,0,0,0,0,null,0]
[null,null,null,null,null,null,null,null,null,0,0,0,0,null,0]
[null,null,null,null,null,null,null,null,null,0,0,0,0,null,0]
[null,null,null,null,null,null,null,null,null,0,0,0,0,null,0]
[null,null,null,null,null,null,null,null,null,0,0,0,0,null,0]
[null,null,null,null,null,null,null,null,null,0,0,0,0,null,0]
[null,null,null,null,null,null,null,null,null,0,0,0,0,null,0]
[null,null,null,null,null,null,null,null,null,0,0,0,0,null,0]
[null,null,null,null,null,null,null,null,null,0,0,0,0,null,0]
[null,null,null,null,null,null,null,null,null,0,0,0,0,null,0]
[null,null,null,null,null,null,null,null,null,0,0,0,0,null,0]
[null,null,null,null,null,null,null,null,null,0,0,0,0,null,0]
[null,null,null,null,null,null,null,null,null,0,0,0,0,null,0]
[null,null,null,null,null,null,null,null,null,0,0,0,0,null,0]
[null,null,null,null,null,null,null,null,null,0,0,0,0,null,0]
[null,null,null,null,null,null,null,null,null,0,0,0,0,null,0]
[null,null,null,null,null,null,null,null,null,0,0,0,0,null,0]
[null,null,null,null,null,null,null,null,null,0,0,{"$f":"LARGE(E101:K101,1)","v":0},{"$f":"LARGE(E101:K101,2)","v":0},null,{"$f":"L101+M101","v":0}]
[null,null,null,null,null,null,null,null,null,0,0,0,0,null,0]
[null,null,null,null,null,null,null,null,null,0,0,0,0,null,0]
[null,null,null,null,null,null,null,null,null,0,0,0,0,null,0]
[null,null,null,null,null,null,null,null,null,0,0,0,0,null,0]
[null,null,null,null,null,null,null,null,null,0,0,0,0,null,0]
[null,null,null,null,null,null,null,null,null,0,0,0,0,null,0]
[null,null,null,null,null,null,null,null,null,0,0,0,0,null,0]
[null,null,null,null,null,null,null,null,null,0,0,0,0,null,0]
[null,null,null,null,null,null,null,null,null,0,0,0,0,null,0]
[null,null,null,null,null,null,null,null,null,0,0,0,0,null,0]
[null,null,null,null,null,null,null,null,null,0,0,0,0,null,0]
[null,null,null,null,null,null,null,null,null,0,0,0,0,null,0]
[null,null,null,null,null,null,null,null,null,0,0,0,0,null,0]
[null,null,null,null,null,null,null,null,null,0,0,0,0,null,0]
[null,null,null,null,null,null,null,null,null,0,0,0,0,null,0]
[null,null,null,null,null,null,null,null,null,0,0,0,0,null,0]
[null,null,null,null,null,null,null,null,null,0,0,0,0,null,0]

{"sheet":"FK0","index":15,"n_rows":118,"n_cols":16,"rows_kept":118,"cut":false,"hidden":false,"merged":[[0,0,0,17],[1,0,1,17],[2,11,3,11],[2,12,3,12],[2,13,3,14]]}
["            Point skema Farm Klasse 0"]
[]
[null,null,null,null,null,"Stævner",null,null,null,null,null,"Højeste point ","2. højeste point","2 højeste point sammenlagt",null,"Placering"]
["Navn","Traktor ","Medlemsnr",null,"Skive","Tjele","Thisted","Mors","Viborg "]
[null,null,null,null,null,null,null,null,null,0,0,{"$f":"LARGE(E5:K5,1)","v":0},{"$f":"LARGE(E5:K5,2)","v":0},null,{"$f":"L5+M5","v":0},1]
[null,null,null,null,null,null,null,null,null,0,0,0,0,null,0,2]
[null,null,null,null,null,null,null,null,null,0,0,0,0,null,0,3]
[null,null,null,null,null,null,null,null,null,0,0,0,0,null,0,4]
[null,null,null,null,null,null,null,null,null,0,0,0,0,null,0,5]
[null,null,null,null,null,null,null,null,null,0,0,0,0,null,0,6]
[null,null,null,null,null,null,null,null,null,0,0,0,0,null,0,7]
[null,null,null,null,null,null,null,null,null,0,0,0,0,null,0,8]
[null,null,null,null,null,null,null,null,null,0,0,0,0,null,0,9]
[null,null,null,null,null,null,null,null,null,0,0,0,0,null,0,10]
[null,null,null,null,null,null,null,null,null,0,0,0,0,null,0,11]
[null,null,null,null,null,null,null,null,null,0,0,0,0,null,0]
[null,null,null,null,null,null,null,null,null,0,0,0,0,null,0]
[null,null,null,null,null,null,null,null,null,0,0,0,0,null,0]
[null,null,null,null,null,null,null,null,null,0,0,0,0,null,0]
[null,null,null,null,null,null,null,null,null,0,0,0,0,null,0]
[null,null,null,null,null,null,null,null,null,0,0,0,0,null,0]
[null,null,null,null,null,null,null,null,null,0,0,0,0,null,0]
[null,null,null,null,null,null,null,null,null,0,0,0,0,null,0]
[null,null,null,null,null,null,null,null,null,0,0,0,0,null,0]
[null,null,null,null,null,null,null,null,null,0,0,0,0,null,0]
[null,null,null,null,null,null,null,null,null,0,0,0,0,null,0]
[null,null,null,null,null,null,null,null,null,0,0,0,0,null,0]
[null,null,null,null,null,null,null,null,null,0,0,0,0,null,0]
[null,null,null,null,null,null,null,null,null,0,0,0,0,null,0]
[null,null,null,null,null,null,null,null,null,0,0,0,0,null,0]
[null,null,null,null,null,null,null,null,null,0,0,0,0,null,0]
[null,null,null,null,null,null,null,null,null,0,0,0,0,null,0]
[null,null,null,null,null,null,null,null,null,0,0,0,0,null,0]
[null,null,null,null,null,null,null,null,null,0,0,0,0,null,0]
[null,null,null,null,null,null,null,null,null,0,0,0,0,null,0]
[null,null,null,null,null,null,null,null,null,0,0,0,0,null,0]
[null,null,null,null,null,null,null,null,null,0,0,{"$f":"LARGE(E37:K37,1)","v":0},{"$f":"LARGE(E37:K37,2)","v":0},null,{"$f":"L37+M37","v":0}]
[null,null,null,null,null,null,null,null,null,0,0,0,0,null,0]
[null,null,null,null,null,null,null,null,null,0,0,0,0,null,0]
[null,null,null,null,null,null,null,null,null,0,0,0,0,null,0]
[null,null,null,null,null,null,null,null,null,0,0,0,0,null,0]
[null,null,null,null,null,null,null,null,null,0,0,0,0,null,0]
[null,null,null,null,null,null,null,null,null,0,0,0,0,null,0]
[null,null,null,null,null,null,null,null,null,0,0,0,0,null,0]
[null,null,null,null,null,null,null,null,null,0,0,0,0,null,0]
[null,null,null,null,null,null,null,null,null,0,0,0,0,null,0]
[null,null,null,null,null,null,null,null,null,0,0,0,0,null,0]
[null,null,null,null,null,null,null,null,null,0,0,0,0,null,0]
[null,null,null,null,null,null,null,null,null,0,0,0,0,null,0]
[null,null,null,null,null,null,null,null,null,0,0,0,0,null,0]
[null,null,null,null,null,null,null,null,null,0,0,0,0,null,0]
[null,null,null,null,null,null,null,null,null,0,0,0,0,null,0]
[null,null,null,null,null,null,null,null,null,0,0,0,0,null,0]
[null,null,null,null,null,null,null,null,null,0,0,0,0,null,0]
[null,null,null,null,null,null,null,null,null,0,0,0,0,null,0]
[null,null,null,null,null,null,null,null,null,0,0,0,0,null,0]
[null,null,null,null,null,null,null,null,null,0,0,0,0,null,0]
[null,null,null,null,null,null,null,null,null,0,0,0,0,null,0]
[null,null,null,null,null,null,null,null,null,0,0,0,0,null,0]
[null,null,null,null,null,null,null,null,null,0,0,0,0,null,0]
[null,null,null,null,null,null,null,null,null,0,0,0,0,null,0]
[null,null,null,null,null,null,null,null,null,0,0,0,0,null,0]
[null,null,null,null,null,null,null,null,null,0,0,0,0,null,0]
[null,null,null,null,null,null,null,null,null,0,0,0,0,null,0]
[null,null,null,null,null,null,null,null,null,0,0,0,0,null,0]
[null,null,null,null,null,null,null,null,null,0,0,0,0,null,0]
[null,null,null,null,null,null,null,null,null,0,0,0,0,null,0]
[null,null,null,null,null,null,null,null,null,0,0,0,0,null,0]
[null,null,null,null,null,null,null,null,null,0,0,{"$f":"LARGE(E69:K69,1)","v":0},{"$f":"LARGE(E69:K69,2)","v":0},null,{"$f":"L69+M69","v":0}]
[null,null,null,null,null,null,null,null,null,0,0,0,0,null,0]
[null,null,null,null,null,null,null,null,null,0,0,0,0,null,0]
[null,null,null,null,null,null,null,null,null,0,0,0,0,null,0]
[null,null,null,null,null,null,null,null,null,0,0,0,0,null,0]
[null,null,null,null,null,null,null,null,null,0,0,0,0,null,0]
[null,null,null,null,null,null,null,null,null,0,0,0,0,null,0]
[null,null,null,null,null,null,null,null,null,0,0,0,0,null,0]
[null,null,null,null,null,null,null,null,null,0,0,0,0,null,0]
[null,null,null,null,null,null,null,null,null,0,0,0,0,null,0]
[null,null,null,null,null,null,null,null,null,0,0,0,0,null,0]
[null,null,null,null,null,null,null,null,null,0,0,0,0,null,0]
[null,null,null,null,null,null,null,null,null,0,0,0,0,null,0]
[null,null,null,null,null,null,null,null,null,0,0,0,0,null,0]
[null,null,null,null,null,null,null,null,null,0,0,0,0,null,0]
[null,null,null,null,null,null,null,null,null,0,0,0,0,null,0]
[null,null,null,null,null,null,null,null,null,0,0,0,0,null,0]
[null,null,null,null,null,null,null,null,null,0,0,0,0,null,0]
[null,null,null,null,null,null,null,null,null,0,0,0,0,null,0]
[null,null,null,null,null,null,null,null,null,0,0,0,0,null,0]
[null,null,null,null,null,null,null,null,null,0,0,0,0,null,0]
[null,null,null,null,null,null,null,null,null,0,0,0,0,null,0]
[null,null,null,null,null,null,null,null,null,0,0,0,0,null,0]
[null,null,null,null,null,null,null,null,null,0,0,0,0,null,0]
[null,null,null,null,null,null,null,null,null,0,0,0,0,null,0]
[null,null,null,null,null,null,null,null,null,0,0,0,0,null,0]
[null,null,null,null,null,null,null,null,null,0,0,0,0,null,0]
[null,null,null,null,null,null,null,null,null,0,0,0,0,null,0]
[null,null,null,null,null,null,null,null,null,0,0,0,0,null,0]
[null,null,null,null,null,null,null,null,null,0,0,0,0,null,0]
[null,null,null,null,null,null,null,null,null,0,0,0,0,null,0]
[null,null,null,null,null,null,null,null,null,0,0,0,0,null,0]
[null,null,null,null,null,null,null,null,null,0,0,{"$f":"LARGE(E101:K101,1)","v":0},{"$f":"LARGE(E101:K101,2)","v":0},null,{"$f":"L101+M101","v":0}]
[null,null,null,null,null,null,null,null,null,0,0,0,0,null,0]
[null,null,null,null,null,null,null,null,null,0,0,0,0,null,0]
[null,null,null,null,null,null,null,null,null,0,0,0,0,null,0]
[null,null,null,null,null,null,null,null,null,0,0,0,0,null,0]
[null,null,null,null,null,null,null,null,null,0,0,0,0,null,0]
[null,null,null,null,null,null,null,null,null,0,0,0,0,null,0]
[null,null,null,null,null,null,null,null,null,0,0,0,0,null,0]
[null,null,null,null,null,null,null,null,null,0,0,0,0,null,0]
[null,null,null,null,null,null,null,null,null,0,0,0,0,null,0]
[null,null,null,null,null,null,null,null,null,0,0,0,0,null,0]
[null,null,null,null,null,null,null,null,null,0,0,0,0,null,0]
[null,null,null,null,null,null,null,null,null,0,0,0,0,null,0]
[null,null,null,null,null,null,null,null,null,0,0,0,0,null,0]
[null,null,null,null,null,null,null,null,null,0,0,0,0,null,0]
[null,null,null,null,null,null,null,null,null,0,0,0,0,null,0]
[null,null,null,null,null,null,null,null,null,0,0,0,0,null,0]
[null,null,null,null,null,null,null,null,null,0,0,0,0,null,0]

{"sheet":"FK1","index":16,"n_rows":118,"n_cols":16,"rows_kept":118,"cut":false,"hidden":false,"merged":[[0,0,0,17],[1,0,1,17],[2,11,3,11],[2,12,3,12],[2,13,3,14]]}
["            Point skema Farm Klasse 1"]
[]
[null,null,null,null,null,"Stævner",null,null,null,null,null,"Højeste point ","2. højeste point","2 højeste point sammenlagt",null,"Placering"]
["Navn","Traktor ","Medlemsnr",null,"Skive","Tjele","Thisted","Mors","Viborg "]
[null,null,null,null,null,null,null,null,null,0,0,{"$f":"LARGE(E5:K5,1)","v":0},{"$f":"LARGE(E5:K5,2)","v":0},null,{"$f":"L5+M5","v":0},1]
[null,null,null,null,null,null,null,null,null,0,0,0,0,null,0,2]
[null,null,null,null,null,null,null,null,null,0,0,0,0,null,0,3]
[null,null,null,null,null,null,null,null,null,0,0,0,0,null,0,4]
[null,null,null,null,null,null,null,null,null,0,0,0,0,null,0,5]
[null,null,null,null,null,null,null,null,null,0,0,0,0,null,0,6]
[null,null,null,null,null,null,null,null,null,0,0,0,0,null,0,7]
[null,null,null,null,null,null,null,null,null,0,0,0,0,null,0,8]
[null,null,null,null,null,null,null,null,null,0,0,0,0,null,0,9]
[null,null,null,null,null,null,null,null,null,0,0,0,0,null,0,10]
[null,null,null,null,null,null,null,null,null,0,0,0,0,null,0,11]
[null,null,null,null,null,null,null,null,null,0,0,0,0,null,0]
[null,null,null,null,null,null,null,null,null,0,0,0,0,null,0]
[null,null,null,null,null,null,null,null,null,0,0,0,0,null,0]
[null,null,null,null,null,null,null,null,null,0,0,0,0,null,0]
[null,null,null,null,null,null,null,null,null,0,0,0,0,null,0]
[null,null,null,null,null,null,null,null,null,0,0,0,0,null,0]
[null,null,null,null,null,null,null,null,null,0,0,0,0,null,0]
[null,null,null,null,null,null,null,null,null,0,0,0,0,null,0]
[null,null,null,null,null,null,null,null,null,0,0,0,0,null,0]
[null,null,null,null,null,null,null,null,null,0,0,0,0,null,0]
[null,null,null,null,null,null,null,null,null,0,0,0,0,null,0]
[null,null,null,null,null,null,null,null,null,0,0,0,0,null,0]
[null,null,null,null,null,null,null,null,null,0,0,0,0,null,0]
[null,null,null,null,null,null,null,null,null,0,0,0,0,null,0]
[null,null,null,null,null,null,null,null,null,0,0,0,0,null,0]
[null,null,null,null,null,null,null,null,null,0,0,0,0,null,0]
[null,null,null,null,null,null,null,null,null,0,0,0,0,null,0]
[null,null,null,null,null,null,null,null,null,0,0,0,0,null,0]
[null,null,null,null,null,null,null,null,null,0,0,0,0,null,0]
[null,null,null,null,null,null,null,null,null,0,0,0,0,null,0]
[null,null,null,null,null,null,null,null,null,0,0,0,0,null,0]
[null,null,null,null,null,null,null,null,null,0,0,{"$f":"LARGE(E37:K37,1)","v":0},{"$f":"LARGE(E37:K37,2)","v":0},null,{"$f":"L37+M37","v":0}]
[null,null,null,null,null,null,null,null,null,0,0,0,0,null,0]
[null,null,null,null,null,null,null,null,null,0,0,0,0,null,0]
[null,null,null,null,null,null,null,null,null,0,0,0,0,null,0]
[null,null,null,null,null,null,null,null,null,0,0,0,0,null,0]
[null,null,null,null,null,null,null,null,null,0,0,0,0,null,0]
[null,null,null,null,null,null,null,null,null,0,0,0,0,null,0]
[null,null,null,null,null,null,null,null,null,0,0,0,0,null,0]
[null,null,null,null,null,null,null,null,null,0,0,0,0,null,0]
[null,null,null,null,null,null,null,null,null,0,0,0,0,null,0]
[null,null,null,null,null,null,null,null,null,0,0,0,0,null,0]
[null,null,null,null,null,null,null,null,null,0,0,0,0,null,0]
[null,null,null,null,null,null,null,null,null,0,0,0,0,null,0]
[null,null,null,null,null,null,null,null,null,0,0,0,0,null,0]
[null,null,null,null,null,null,null,null,null,0,0,0,0,null,0]
[null,null,null,null,null,null,null,null,null,0,0,0,0,null,0]
[null,null,null,null,null,null,null,null,null,0,0,0,0,null,0]
[null,null,null,null,null,null,null,null,null,0,0,0,0,null,0]
[null,null,null,null,null,null,null,null,null,0,0,0,0,null,0]
[null,null,null,null,null,null,null,null,null,0,0,0,0,null,0]
[null,null,null,null,null,null,null,null,null,0,0,0,0,null,0]
[null,null,null,null,null,null,null,null,null,0,0,0,0,null,0]
[null,null,null,null,null,null,null,null,null,0,0,0,0,null,0]
[null,null,null,null,null,null,null,null,null,0,0,0,0,null,0]
[null,null,null,null,null,null,null,null,null,0,0,0,0,null,0]
[null,null,null,null,null,null,null,null,null,0,0,0,0,null,0]
[null,null,null,null,null,null,null,null,null,0,0,0,0,null,0]
[null,null,null,null,null,null,null,null,null,0,0,0,0,null,0]
[null,null,null,null,null,null,null,null,null,0,0,0,0,null,0]
[null,null,null,null,null,null,null,null,null,0,0,0,0,null,0]
[null,null,null,null,null,null,null,null,null,0,0,0,0,null,0]
[null,null,null,null,null,null,null,null,null,0,0,0,0,null,0]
[null,null,null,null,null,null,null,null,null,0,0,{"$f":"LARGE(E69:K69,1)","v":0},{"$f":"LARGE(E69:K69,2)","v":0},null,{"$f":"L69+M69","v":0}]
[null,null,null,null,null,null,null,null,null,0,0,0,0,null,0]
[null,null,null,null,null,null,null,null,null,0,0,0,0,null,0]
[null,null,null,null,null,null,null,null,null,0,0,0,0,null,0]
[null,null,null,null,null,null,null,null,null,0,0,0,0,null,0]
[null,null,null,null,null,null,null,null,null,0,0,0,0,null,0]
[null,null,null,null,null,null,null,null,null,0,0,0,0,null,0]
[null,null,null,null,null,null,null,null,null,0,0,0,0,null,0]
[null,null,null,null,null,null,null,null,null,0,0,0,0,null,0]
[null,null,null,null,null,null,null,null,null,0,0,0,0,null,0]
[null,null,null,null,null,null,null,null,null,0,0,0,0,null,0]
[null,null,null,null,null,null,null,null,null,0,0,0,0,null,0]
[null,null,null,null,null,null,null,null,null,0,0,0,0,null,0]
[null,null,null,null,null,null,null,null,null,0,0,0,0,null,0]
[null,null,null,null,null,null,null,null,null,0,0,0,0,null,0]
[null,null,null,null,null,null,null,null,null,0,0,0,0,null,0]
[null,null,null,null,null,null,null,null,null,0,0,0,0,null,0]
[null,null,null,null,null,null,null,null,null,0,0,0,0,null,0]
[null,null,null,null,null,null,null,null,null,0,0,0,0,null,0]
[null,null,null,null,null,null,null,null,null,0,0,0,0,null,0]
[null,null,null,null,null,null,null,null,null,0,0,0,0,null,0]
[null,null,null,null,null,null,null,null,null,0,0,0,0,null,0]
[null,null,null,null,null,null,null,null,null,0,0,0,0,null,0]
[null,null,null,null,null,null,null,null,null,0,0,0,0,null,0]
[null,null,null,null,null,null,null,null,null,0,0,0,0,null,0]
[null,null,null,null,null,null,null,null,null,0,0,0,0,null,0]
[null,null,null,null,null,null,null,null,null,0,0,0,0,null,0]
[null,null,null,null,null,null,null,null,null,0,0,0,0,null,0]
[null,null,null,null,null,null,null,null,null,0,0,0,0,null,0]
[null,null,null,null,null,null,null,null,null,0,0,0,0,null,0]
[null,null,null,null,null,null,null,null,null,0,0,0,0,null,0]
[null,null,null,null,null,null,null,null,null,0,0,0,0,null,0]
[null,null,null,null,null,null,null,null,null,0,0,{"$f":"LARGE(E101:K101,1)","v":0},{"$f":"LARGE(E101:K101,2)","v":0},null,{"$f":"L101+M101","v":0}]
[null,null,null,null,null,null,null,null,null,0,0,0,0,null,0]
[null,null,null,null,null,null,null,null,null,0,0,0,0,null,0]
[null,null,null,null,null,null,null,null,null,0,0,0,0,null,0]
[null,null,null,null,null,null,null,null,null,0,0,0,0,null,0]
[null,null,null,null,null,null,null,null,null,0,0,0,0,null,0]
[null,null,null,null,null,null,null,null,null,0,0,0,0,null,0]
[null,null,null,null,null,null,null,null,null,0,0,0,0,null,0]
[null,null,null,null,null,null,null,null,null,0,0,0,0,null,0]
[null,null,null,null,null,null,null,null,null,0,0,0,0,null,0]
[null,null,null,null,null,null,null,null,null,0,0,0,0,null,0]
[null,null,null,null,null,null,null,null,null,0,0,0,0,null,0]
[null,null,null,null,null,null,null,null,null,0,0,0,0,null,0]
[null,null,null,null,null,null,null,null,null,0,0,0,0,null,0]
[null,null,null,null,null,null,null,null,null,0,0,0,0,null,0]
[null,null,null,null,null,null,null,null,null,0,0,0,0,null,0]
[null,null,null,null,null,null,null,null,null,0,0,0,0,null,0]
[null,null,null,null,null,null,null,null,null,0,0,0,0,null,0]

{"sheet":"FK2","index":17,"n_rows":118,"n_cols":16,"rows_kept":118,"cut":false,"hidden":false,"merged":[[0,0,0,17],[1,0,1,17],[2,11,3,11],[2,12,3,12],[2,13,3,14]]}
["            Point skema Farm Klasse 2"]
[]
[null,null,null,null,null,"Stævner",null,null,null,null,null,"Højeste point ","2. højeste point","2 højeste point sammenlagt",null,"Placering"]
["Navn","Traktor ","Medlemsnr",null,"Skive","Tjele","Thisted","Mors","Viborg "]
[null,null,null,null,null,null,null,null,null,0,0,{"$f":"LARGE(E5:K5,1)","v":0},{"$f":"LARGE(E5:K5,2)","v":0},null,{"$f":"L5+M5","v":0},1]
[null,null,null,null,null,null,null,null,null,0,0,0,0,null,0,2]
[null,null,null,null,null,null,null,null,null,0,0,0,0,null,0,3]
[null,null,null,null,null,null,null,null,null,0,0,0,0,null,0,4]
[null,null,null,null,null,null,null,null,null,0,0,0,0,null,0,5]
[null,null,null,null,null,null,null,null,null,0,0,0,0,null,0,6]
[null,null,null,null,null,null,null,null,null,0,0,0,0,null,0,7]
[null,null,null,null,null,null,null,null,null,0,0,0,0,null,0,8]
[null,null,null,null,null,null,null,null,null,0,0,0,0,null,0,9]
[null,null,null,null,null,null,null,null,null,0,0,0,0,null,0,10]
[null,null,null,null,null,null,null,null,null,0,0,0,0,null,0,11]
[null,null,null,null,null,null,null,null,null,0,0,0,0,null,0]
[null,null,null,null,null,null,null,null,null,0,0,0,0,null,0]
[null,null,null,null,null,null,null,null,null,0,0,0,0,null,0]
[null,null,null,null,null,null,null,null,null,0,0,0,0,null,0]
[null,null,null,null,null,null,null,null,null,0,0,0,0,null,0]
[null,null,null,null,null,null,null,null,null,0,0,0,0,null,0]
[null,null,null,null,null,null,null,null,null,0,0,0,0,null,0]
[null,null,null,null,null,null,null,null,null,0,0,0,0,null,0]
[null,null,null,null,null,null,null,null,null,0,0,0,0,null,0]
[null,null,null,null,null,null,null,null,null,0,0,0,0,null,0]
[null,null,null,null,null,null,null,null,null,0,0,0,0,null,0]
[null,null,null,null,null,null,null,null,null,0,0,0,0,null,0]
[null,null,null,null,null,null,null,null,null,0,0,0,0,null,0]
[null,null,null,null,null,null,null,null,null,0,0,0,0,null,0]
[null,null,null,null,null,null,null,null,null,0,0,0,0,null,0]
[null,null,null,null,null,null,null,null,null,0,0,0,0,null,0]
[null,null,null,null,null,null,null,null,null,0,0,0,0,null,0]
[null,null,null,null,null,null,null,null,null,0,0,0,0,null,0]
[null,null,null,null,null,null,null,null,null,0,0,0,0,null,0]
[null,null,null,null,null,null,null,null,null,0,0,0,0,null,0]
[null,null,null,null,null,null,null,null,null,0,0,0,0,null,0]
[null,null,null,null,null,null,null,null,null,0,0,{"$f":"LARGE(E37:K37,1)","v":0},{"$f":"LARGE(E37:K37,2)","v":0},null,{"$f":"L37+M37","v":0}]
[null,null,null,null,null,null,null,null,null,0,0,0,0,null,0]
[null,null,null,null,null,null,null,null,null,0,0,0,0,null,0]
[null,null,null,null,null,null,null,null,null,0,0,0,0,null,0]
[null,null,null,null,null,null,null,null,null,0,0,0,0,null,0]
[null,null,null,null,null,null,null,null,null,0,0,0,0,null,0]
[null,null,null,null,null,null,null,null,null,0,0,0,0,null,0]
[null,null,null,null,null,null,null,null,null,0,0,0,0,null,0]
[null,null,null,null,null,null,null,null,null,0,0,0,0,null,0]
[null,null,null,null,null,null,null,null,null,0,0,0,0,null,0]
[null,null,null,null,null,null,null,null,null,0,0,0,0,null,0]
[null,null,null,null,null,null,null,null,null,0,0,0,0,null,0]
[null,null,null,null,null,null,null,null,null,0,0,0,0,null,0]
[null,null,null,null,null,null,null,null,null,0,0,0,0,null,0]
[null,null,null,null,null,null,null,null,null,0,0,0,0,null,0]
[null,null,null,null,null,null,null,null,null,0,0,0,0,null,0]
[null,null,null,null,null,null,null,null,null,0,0,0,0,null,0]
[null,null,null,null,null,null,null,null,null,0,0,0,0,null,0]
[null,null,null,null,null,null,null,null,null,0,0,0,0,null,0]
[null,null,null,null,null,null,null,null,null,0,0,0,0,null,0]
[null,null,null,null,null,null,null,null,null,0,0,0,0,null,0]
[null,null,null,null,null,null,null,null,null,0,0,0,0,null,0]
[null,null,null,null,null,null,null,null,null,0,0,0,0,null,0]
[null,null,null,null,null,null,null,null,null,0,0,0,0,null,0]
[null,null,null,null,null,null,null,null,null,0,0,0,0,null,0]
[null,null,null,null,null,null,null,null,null,0,0,0,0,null,0]
[null,null,null,null,null,null,null,null,null,0,0,0,0,null,0]
[null,null,null,null,null,null,null,null,null,0,0,0,0,null,0]
[null,null,null,null,null,null,null,null,null,0,0,0,0,null,0]
[null,null,null,null,null,null,null,null,null,0,0,0,0,null,0]
[null,null,null,null,null,null,null,null,null,0,0,0,0,null,0]
[null,null,null,null,null,null,null,null,null,0,0,0,0,null,0]
[null,null,null,null,null,null,null,null,null,0,0,{"$f":"LARGE(E69:K69,1)","v":0},{"$f":"LARGE(E69:K69,2)","v":0},null,{"$f":"L69+M69","v":0}]
[null,null,null,null,null,null,null,null,null,0,0,0,0,null,0]
[null,null,null,null,null,null,null,null,null,0,0,0,0,null,0]
[null,null,null,null,null,null,null,null,null,0,0,0,0,null,0]
[null,null,null,null,null,null,null,null,null,0,0,0,0,null,0]
[null,null,null,null,null,null,null,null,null,0,0,0,0,null,0]
[null,null,null,null,null,null,null,null,null,0,0,0,0,null,0]
[null,null,null,null,null,null,null,null,null,0,0,0,0,null,0]
[null,null,null,null,null,null,null,null,null,0,0,0,0,null,0]
[null,null,null,null,null,null,null,null,null,0,0,0,0,null,0]
[null,null,null,null,null,null,null,null,null,0,0,0,0,null,0]
[null,null,null,null,null,null,null,null,null,0,0,0,0,null,0]
[null,null,null,null,null,null,null,null,null,0,0,0,0,null,0]
[null,null,null,null,null,null,null,null,null,0,0,0,0,null,0]
[null,null,null,null,null,null,null,null,null,0,0,0,0,null,0]
[null,null,null,null,null,null,null,null,null,0,0,0,0,null,0]
[null,null,null,null,null,null,null,null,null,0,0,0,0,null,0]
[null,null,null,null,null,null,null,null,null,0,0,0,0,null,0]
[null,null,null,null,null,null,null,null,null,0,0,0,0,null,0]
[null,null,null,null,null,null,null,null,null,0,0,0,0,null,0]
[null,null,null,null,null,null,null,null,null,0,0,0,0,null,0]
[null,null,null,null,null,null,null,null,null,0,0,0,0,null,0]
[null,null,null,null,null,null,null,null,null,0,0,0,0,null,0]
[null,null,null,null,null,null,null,null,null,0,0,0,0,null,0]
[null,null,null,null,null,null,null,null,null,0,0,0,0,null,0]
[null,null,null,null,null,null,null,null,null,0,0,0,0,null,0]
[null,null,null,null,null,null,null,null,null,0,0,0,0,null,0]
[null,null,null,null,null,null,null,null,null,0,0,0,0,null,0]
[null,null,null,null,null,null,null,null,null,0,0,0,0,null,0]
[null,null,null,null,null,null,null,null,null,0,0,0,0,null,0]
[null,null,null,null,null,null,null,null,null,0,0,0,0,null,0]
[null,null,null,null,null,null,null,null,null,0,0,0,0,null,0]
[null,null,null,null,null,null,null,null,null,0,0,{"$f":"LARGE(E101:K101,1)","v":0},{"$f":"LARGE(E101:K101,2)","v":0},null,{"$f":"L101+M101","v":0}]
[null,null,null,null,null,null,null,null,null,0,0,0,0,null,0]
[null,null,null,null,null,null,null,null,null,0,0,0,0,null,0]
[null,null,null,null,null,null,null,null,null,0,0,0,0,null,0]
[null,null,null,null,null,null,null,null,null,0,0,0,0,null,0]
[null,null,null,null,null,null,null,null,null,0,0,0,0,null,0]
[null,null,null,null,null,null,null,null,null,0,0,0,0,null,0]
[null,null,null,null,null,null,null,null,null,0,0,0,0,null,0]
[null,null,null,null,null,null,null,null,null,0,0,0,0,null,0]
[null,null,null,null,null,null,null,null,null,0,0,0,0,null,0]
[null,null,null,null,null,null,null,null,null,0,0,0,0,null,0]
[null,null,null,null,null,null,null,null,null,0,0,0,0,null,0]
[null,null,null,null,null,null,null,null,null,0,0,0,0,null,0]
[null,null,null,null,null,null,null,null,null,0,0,0,0,null,0]
[null,null,null,null,null,null,null,null,null,0,0,0,0,null,0]
[null,null,null,null,null,null,null,null,null,0,0,0,0,null,0]
[null,null,null,null,null,null,null,null,null,0,0,0,0,null,0]
[null,null,null,null,null,null,null,null,null,0,0,0,0,null,0]

{"sheet":"FK3","index":18,"n_rows":118,"n_cols":16,"rows_kept":118,"cut":false,"hidden":false,"merged":[[0,0,0,17],[1,0,1,17],[2,11,3,11],[2,12,3,12],[2,13,3,14]]}
["            Point skema Farm Klasse 3"]
[]
[null,null,null,null,null,"Stævner",null,null,null,null,null,"Højeste point ","2. højeste point","2 højeste point sammenlagt",null,"Placering"]
["Navn","Traktor ","Medlemsnr",null,"Skive","Tjele","Thisted","Mors","Viborg "]
[null,null,null,null,null,null,null,null,null,0,0,{"$f":"LARGE(E5:K5,1)","v":0},{"$f":"LARGE(E5:K5,2)","v":0},null,{"$f":"L5+M5","v":0},1]
[null,null,null,null,null,null,null,null,null,0,0,0,0,null,0,2]
[null,null,null,null,null,null,null,null,null,0,0,0,0,null,0,3]
[null,null,null,null,null,null,null,null,null,0,0,0,0,null,0,4]
[null,null,null,null,null,null,null,null,null,0,0,0,0,null,0,5]
[null,null,null,null,null,null,null,null,null,0,0,0,0,null,0,6]
[null,null,null,null,null,null,null,null,null,0,0,0,0,null,0,7]
[null,null,null,null,null,null,null,null,null,0,0,0,0,null,0,8]
[null,null,null,null,null,null,null,null,null,0,0,0,0,null,0,9]
[null,null,null,null,null,null,null,null,null,0,0,0,0,null,0,10]
[null,null,null,null,null,null,null,null,null,0,0,0,0,null,0,11]
[null,null,null,null,null,null,null,null,null,0,0,0,0,null,0]
[null,null,null,null,null,null,null,null,null,0,0,0,0,null,0]
[null,null,null,null,null,null,null,null,null,0,0,0,0,null,0]
[null,null,null,null,null,null,null,null,null,0,0,0,0,null,0]
[null,null,null,null,null,null,null,null,null,0,0,0,0,null,0]
[null,null,null,null,null,null,null,null,null,0,0,0,0,null,0]
[null,null,null,null,null,null,null,null,null,0,0,0,0,null,0]
[null,null,null,null,null,null,null,null,null,0,0,0,0,null,0]
[null,null,null,null,null,null,null,null,null,0,0,0,0,null,0]
[null,null,null,null,null,null,null,null,null,0,0,0,0,null,0]
[null,null,null,null,null,null,null,null,null,0,0,0,0,null,0]
[null,null,null,null,null,null,null,null,null,0,0,0,0,null,0]
[null,null,null,null,null,null,null,null,null,0,0,0,0,null,0]
[null,null,null,null,null,null,null,null,null,0,0,0,0,null,0]
[null,null,null,null,null,null,null,null,null,0,0,0,0,null,0]
[null,null,null,null,null,null,null,null,null,0,0,0,0,null,0]
[null,null,null,null,null,null,null,null,null,0,0,0,0,null,0]
[null,null,null,null,null,null,null,null,null,0,0,0,0,null,0]
[null,null,null,null,null,null,null,null,null,0,0,0,0,null,0]
[null,null,null,null,null,null,null,null,null,0,0,0,0,null,0]
[null,null,null,null,null,null,null,null,null,0,0,0,0,null,0]
[null,null,null,null,null,null,null,null,null,0,0,{"$f":"LARGE(E37:K37,1)","v":0},{"$f":"LARGE(E37:K37,2)","v":0},null,{"$f":"L37+M37","v":0}]
[null,null,null,null,null,null,null,null,null,0,0,0,0,null,0]
[null,null,null,null,null,null,null,null,null,0,0,0,0,null,0]
[null,null,null,null,null,null,null,null,null,0,0,0,0,null,0]
[null,null,null,null,null,null,null,null,null,0,0,0,0,null,0]
[null,null,null,null,null,null,null,null,null,0,0,0,0,null,0]
[null,null,null,null,null,null,null,null,null,0,0,0,0,null,0]
[null,null,null,null,null,null,null,null,null,0,0,0,0,null,0]
[null,null,null,null,null,null,null,null,null,0,0,0,0,null,0]
[null,null,null,null,null,null,null,null,null,0,0,0,0,null,0]
[null,null,null,null,null,null,null,null,null,0,0,0,0,null,0]
[null,null,null,null,null,null,null,null,null,0,0,0,0,null,0]
[null,null,null,null,null,null,null,null,null,0,0,0,0,null,0]
[null,null,null,null,null,null,null,null,null,0,0,0,0,null,0]
[null,null,null,null,null,null,null,null,null,0,0,0,0,null,0]
[null,null,null,null,null,null,null,null,null,0,0,0,0,null,0]
[null,null,null,null,null,null,null,null,null,0,0,0,0,null,0]
[null,null,null,null,null,null,null,null,null,0,0,0,0,null,0]
[null,null,null,null,null,null,null,null,null,0,0,0,0,null,0]
[null,null,null,null,null,null,null,null,null,0,0,0,0,null,0]
[null,null,null,null,null,null,null,null,null,0,0,0,0,null,0]
[null,null,null,null,null,null,null,null,null,0,0,0,0,null,0]
[null,null,null,null,null,null,null,null,null,0,0,0,0,null,0]
[null,null,null,null,null,null,null,null,null,0,0,0,0,null,0]
[null,null,null,null,null,null,null,null,null,0,0,0,0,null,0]
[null,null,null,null,null,null,null,null,null,0,0,0,0,null,0]
[null,null,null,null,null,null,null,null,null,0,0,0,0,null,0]
[null,null,null,null,null,null,null,null,null,0,0,0,0,null,0]
[null,null,null,null,null,null,null,null,null,0,0,0,0,null,0]
[null,null,null,null,null,null,null,null,null,0,0,0,0,null,0]
[null,null,null,null,null,null,null,null,null,0,0,0,0,null,0]
[null,null,null,null,null,null,null,null,null,0,0,0,0,null,0]
[null,null,null,null,null,null,null,null,null,0,0,{"$f":"LARGE(E69:K69,1)","v":0},{"$f":"LARGE(E69:K69,2)","v":0},null,{"$f":"L69+M69","v":0}]
[null,null,null,null,null,null,null,null,null,0,0,0,0,null,0]
[null,null,null,null,null,null,null,null,null,0,0,0,0,null,0]
[null,null,null,null,null,null,null,null,null,0,0,0,0,null,0]
[null,null,null,null,null,null,null,null,null,0,0,0,0,null,0]
[null,null,null,null,null,null,null,null,null,0,0,0,0,null,0]
[null,null,null,null,null,null,null,null,null,0,0,0,0,null,0]
[null,null,null,null,null,null,null,null,null,0,0,0,0,null,0]
[null,null,null,null,null,null,null,null,null,0,0,0,0,null,0]
[null,null,null,null,null,null,null,null,null,0,0,0,0,null,0]
[null,null,null,null,null,null,null,null,null,0,0,0,0,null,0]
[null,null,null,null,null,null,null,null,null,0,0,0,0,null,0]
[null,null,null,null,null,null,null,null,null,0,0,0,0,null,0]
[null,null,null,null,null,null,null,null,null,0,0,0,0,null,0]
[null,null,null,null,null,null,null,null,null,0,0,0,0,null,0]
[null,null,null,null,null,null,null,null,null,0,0,0,0,null,0]
[null,null,null,null,null,null,null,null,null,0,0,0,0,null,0]
[null,null,null,null,null,null,null,null,null,0,0,0,0,null,0]
[null,null,null,null,null,null,null,null,null,0,0,0,0,null,0]
[null,null,null,null,null,null,null,null,null,0,0,0,0,null,0]
[null,null,null,null,null,null,null,null,null,0,0,0,0,null,0]
[null,null,null,null,null,null,null,null,null,0,0,0,0,null,0]
[null,null,null,null,null,null,null,null,null,0,0,0,0,null,0]
[null,null,null,null,null,null,null,null,null,0,0,0,0,null,0]
[null,null,null,null,null,null,null,null,null,0,0,0,0,null,0]
[null,null,null,null,null,null,null,null,null,0,0,0,0,null,0]
[null,null,null,null,null,null,null,null,null,0,0,0,0,null,0]
[null,null,null,null,null,null,null,null,null,0,0,0,0,null,0]
[null,null,null,null,null,null,null,null,null,0,0,0,0,null,0]
[null,null,null,null,null,null,null,null,null,0,0,0,0,null,0]
[null,null,null,null,null,null,null,null,null,0,0,0,0,null,0]
[null,null,null,null,null,null,null,null,null,0,0,0,0,null,0]
[null,null,null,null,null,null,null,null,null,0,0,{"$f":"LARGE(E101:K101,1)","v":0},{"$f":"LARGE(E101:K101,2)","v":0},null,{"$f":"L101+M101","v":0}]
[null,null,null,null,null,null,null,null,null,0,0,0,0,null,0]
[null,null,null,null,null,null,null,null,null,0,0,0,0,null,0]
[null,null,null,null,null,null,null,null,null,0,0,0,0,null,0]
[null,null,null,null,null,null,null,null,null,0,0,0,0,null,0]
[null,null,null,null,null,null,null,null,null,0,0,0,0,null,0]
[null,null,null,null,null,null,null,null,null,0,0,0,0,null,0]
[null,null,null,null,null,null,null,null,null,0,0,0,0,null,0]
[null,null,null,null,null,null,null,null,null,0,0,0,0,null,0]
[null,null,null,null,null,null,null,null,null,0,0,0,0,null,0]
[null,null,null,null,null,null,null,null,null,0,0,0,0,null,0]
[null,null,null,null,null,null,null,null,null,0,0,0,0,null,0]
[null,null,null,null,null,null,null,null,null,0,0,0,0,null,0]
[null,null,null,null,null,null,null,null,null,0,0,0,0,null,0]
[null,null,null,null,null,null,null,null,null,0,0,0,0,null,0]
[null,null,null,null,null,null,null,null,null,0,0,0,0,null,0]
[null,null,null,null,null,null,null,null,null,0,0,0,0,null,0]
[null,null,null,null,null,null,null,null,null,0,0,0,0,null,0]